{"text_format":"1","workbook":"xlsx","n_sheets":4,"sheets":["操作練習","操作テスト","キー判定","キーボード入力表示間隔を遅くにする"],"not_rendered":{"charts":0,"images":2,"macros":1,"external_links":0,"defined_names":0,"comments":0,"pivot_tables":0},"unopened":[],"bounds":{"document_bytes":16777216,"sheet_cells":100000,"rows_first":2000,"rows_last":500,"rows_between":2000,"halvings":0,"cell_chars":16384,"cell_head_chars":4096},"cells_cut":0,"cells_raw":0,"read":"whole","date_system":"1900"}

{"sheet":"操作練習","index":0,"n_rows":407,"n_cols":139,"rows_kept":407,"cut":false,"hidden":false,"merged":[[117,18,119,21],[117,22,119,25],[115,18,116,21],[115,22,116,25],[115,26,116,29],[115,30,116,33],[117,26,119,29],[117,30,119,33],[7,57,10,59],[11,96,12,103],[57,102,58,108],[7,87,10,89],[7,90,10,92],[7,60,10,62],[7,63,10,65],[7,66,10,68],[7,69,10,71],[7,72,10,74],[7,75,10,77],[7,78,10,80],[7,81,10,83],[7,84,10,86],[47,101,48,105],[47,107,48,111],[40,83,41,91],[43,59,46,63],[43,65,46,69],[43,71,46,75],[43,95,44,99],[43,101,44,105],[43,107,44,111],[40,107,41,111],[45,107,46,111],[36,107,37,111],[31,68,32,69],[6,27,6,29],[6,30,6,32],[6,33,6,35],[6,36,6,38],[6,39,6,41],[6,42,6,44],[6,45,6,47],[6,48,6,50],[6,51,6,53],[6,75,6,77],[6,78,6,80],[6,81,6,83],[6,84,6,86],[6,87,6,89],[6,90,6,92],[40,41,41,45],[40,47,41,51],[38,65,39,66],[38,68,39,69],[38,71,39,72],[38,74,39,75],[38,77,39,78],[38,80,39,81],[38,59,39,60],[10,110,11,117],[33,86,34,91],[33,95,34,99],[33,101,34,105],[33,107,34,111],[87,100,88,101],[87,102,88,103],[87,104,88,105],[89,100,90,101],[89,102,90,103],[89,104,90,105],[91,100,92,101],[91,102,92,103],[91,104,92,105],[87,98,88,99],[89,98,90,99],[7,6,10,8],[7,9,10,11],[7,12,10,14],[7,15,10,17],[7,18,10,20],[7,21,10,23],[7,24,10,26],[7,27,10,29],[7,30,10,32],[7,33,10,35],[7,36,10,38],[7,39,10,41],[7,42,10,44],[7,45,10,47],[7,48,10,50],[7,51,10,53],[7,54,10,56],[45,101,46,105],[45,95,46,99],[91,50,92,51],[91,96,92,97],[117,2,120,5],[117,6,120,9],[117,10,120,13],[122,2,125,5],[122,6,125,9],[53,77,55,98],[109,4,110,5],[109,6,110,7],[111,2,112,3],[111,4,112,5],[111,6,112,7],[113,2,114,3],[113,4,114,5],[113,6,114,7],[87,96,88,97],[89,80,90,81],[89,82,90,83],[89,84,90,85],[89,86,90,87],[89,88,90,89],[89,90,90,91],[89,92,90,93],[89,94,90,95],[89,96,90,97],[91,80,92,81],[91,82,92,83],[91,84,92,85],[91,86,92,87],[91,88,92,89],[91,90,92,91],[91,92,92,93],[91,94,92,95],[91,110,92,111],[91,112,92,113],[91,114,92,115],[91,116,92,117],[89,118,90,119],[89,120,90,121],[89,122,90,123],[89,124,90,125],[89,126,90,127],[89,128,90,129],[91,130,92,131],[91,132,92,133],[91,134,92,135],[91,136,92,137],[91,124,92,125],[91,126,92,127],[91,128,92,129],[91,98,92,99],[87,130,88,131],[87,132,88,133],[87,134,88,135],[87,136,88,137],[89,106,90,107],[89,108,90,109],[89,110,90,111],[89,112,90,113],[89,114,90,115],[89,116,90,117],[87,118,88,119],[87,120,88,121],[87,122,88,123],[87,124,88,125],[87,126,88,127],[87,128,88,129],[87,106,88,107],[87,108,88,109],[87,110,88,111],[87,112,88,113],[87,114,88,115],[87,116,88,117],[89,130,90,131],[89,132,90,133],[91,118,92,119],[91,120,92,121],[91,122,92,123],[89,134,90,135],[89,136,90,137],[91,106,92,107],[91,108,92,109],[95,46,96,47],[95,48,96,49],[95,50,96,51],[95,52,96,53],[95,54,96,55],[95,32,96,33],[95,34,96,35],[95,36,96,37],[95,38,96,39],[95,40,96,41],[95,42,96,43],[95,68,96,69],[95,70,96,71],[95,72,96,73],[95,74,96,75],[95,76,96,77],[95,78,96,79],[95,56,96,57],[95,58,96,59],[95,60,96,61],[95,62,96,63],[95,64,96,65],[95,66,96,67],[93,64,94,65],[93,42,94,43],[93,44,94,45],[93,46,94,47],[93,48,94,49],[93,50,94,51],[93,52,94,53],[95,20,96,21],[95,22,96,23],[95,24,96,25],[95,26,96,27],[95,28,96,29],[95,30,96,31],[93,78,94,79],[95,2,96,3],[95,4,96,5],[95,6,96,7],[95,8,96,9],[95,10,96,11],[95,12,96,13],[95,14,96,15],[95,16,96,17],[95,18,96,19],[93,66,94,67],[93,68,94,69],[93,70,94,71],[93,72,94,73],[93,74,94,75],[93,76,94,77],[93,54,94,55],[93,56,94,57],[95,44,96,45],[93,2,94,3],[93,4,94,5],[93,6,94,7],[93,8,94,9],[93,10,94,11],[93,12,94,13],[93,14,94,15],[93,16,94,17],[91,64,92,65],[91,52,92,53],[91,54,92,55],[91,56,92,57],[91,58,92,59],[91,60,92,61],[91,62,92,63],[91,40,92,41],[91,42,92,43],[93,30,94,31],[93,32,94,33],[93,34,94,35],[93,36,94,37],[93,38,94,39],[93,40,94,41],[93,18,94,19],[93,20,94,21],[93,22,94,23],[93,24,94,25],[93,26,94,27],[93,28,94,29],[93,58,94,59],[93,60,94,61],[93,62,94,63],[91,76,92,77],[91,78,92,79],[91,66,92,67],[91,68,92,69],[91,70,92,71],[91,72,92,73],[91,74,92,75],[89,76,90,77],[91,4,92,5],[91,6,92,7],[91,8,92,9],[91,10,92,11],[91,12,92,13],[91,14,92,15],[91,44,92,45],[91,46,92,47],[91,48,92,49],[91,28,92,29],[91,30,92,31],[91,32,92,33],[91,34,92,35],[91,36,92,37],[91,38,92,39],[91,16,92,17],[91,18,92,19],[91,20,92,21],[91,22,92,23],[91,24,92,25],[91,26,92,27],[89,4,90,5],[89,6,90,7],[89,8,90,9],[87,74,88,75],[87,52,88,53],[87,54,88,55],[89,44,90,45],[89,46,90,47],[89,54,90,55],[89,68,90,69],[89,70,90,71],[89,72,90,73],[89,74,90,75],[89,38,90,39],[89,40,90,41],[89,42,90,43],[89,78,90,79],[89,56,90,57],[89,58,90,59],[89,60,90,61],[89,62,90,63],[89,64,90,65],[89,66,90,67],[89,48,90,49],[89,50,90,51],[89,52,90,53],[87,72,88,73],[89,10,90,11],[89,12,90,13],[89,14,90,15],[89,16,90,17],[89,18,90,19],[87,64,88,65],[89,20,90,21],[89,22,90,23],[89,24,90,25],[89,26,90,27],[89,28,90,29],[89,30,90,31],[89,32,90,33],[89,34,90,35],[89,36,90,37],[87,24,88,25],[87,26,88,27],[87,56,88,57],[87,38,88,39],[87,58,88,59],[87,4,88,5],[87,36,88,37],[87,16,88,17],[87,18,88,19],[87,20,88,21],[87,22,88,23],[47,113,48,117],[47,65,48,69],[47,71,48,75],[47,95,48,99],[87,60,88,61],[87,62,88,63],[87,40,88,41],[87,42,88,43],[87,44,88,45],[87,46,88,47],[87,48,88,49],[87,50,88,51],[87,80,88,81],[87,82,88,83],[87,84,88,85],[87,86,88,87],[87,88,88,89],[87,90,88,91],[87,92,88,93],[87,94,88,95],[57,113,58,119],[87,76,88,77],[87,78,88,79],[87,66,88,67],[87,68,88,69],[87,70,88,71],[43,3,46,8],[43,11,46,15],[43,17,46,21],[43,23,46,27],[43,29,46,34],[43,36,46,50],[43,52,46,57],[40,53,41,57],[40,59,41,63],[87,6,88,7],[87,8,88,9],[87,10,88,11],[87,12,88,13],[87,14,88,15],[47,44,48,50],[47,52,48,57],[47,59,48,63],[47,3,48,8],[47,11,48,15],[47,17,48,21],[47,23,48,27],[47,29,48,34],[47,36,48,43],[87,28,88,29],[87,30,88,31],[87,32,88,33],[87,34,88,35],[40,3,41,15],[40,17,41,21],[40,23,41,27],[40,29,41,33],[40,35,41,39],[36,59,37,60],[36,62,37,63],[36,65,37,66],[38,50,39,51],[38,56,39,57],[33,20,34,24],[33,26,34,30],[33,32,34,36],[33,38,34,42],[33,80,34,84],[29,20,31,22],[31,77,32,78],[31,80,32,81],[31,83,32,84],[31,17,32,18],[31,23,32,24],[31,29,32,30],[31,35,32,36],[31,41,32,42],[29,62,31,64],[29,65,30,66],[29,68,30,69],[29,71,30,72],[31,65,32,66],[29,47,30,48],[29,50,31,52],[29,53,30,54],[29,56,31,58],[29,59,30,60],[31,47,32,48],[31,59,32,60],[36,3,39,15],[36,17,38,19],[36,20,37,21],[36,23,38,25],[36,26,37,27],[36,29,38,31],[36,95,37,99],[36,101,37,105],[40,65,41,69],[40,71,41,75],[40,77,41,81],[33,113,34,117],[33,44,34,48],[33,50,34,54],[33,56,34,60],[33,62,34,66],[33,68,34,72],[33,74,34,78],[36,32,37,33],[36,35,38,37],[36,38,37,39],[36,41,38,43],[36,44,37,45],[36,47,38,49],[38,107,39,111],[33,3,34,12],[33,14,34,18],[36,80,37,81],[36,83,39,91],[36,50,37,51],[36,53,38,55],[36,56,37,57],[38,20,39,21],[38,26,39,27],[38,32,39,33],[38,38,39,39],[38,44,39,45],[36,68,37,69],[36,71,37,72],[36,74,37,75],[36,77,37,78],[29,74,30,75],[29,77,30,78],[31,74,32,75],[29,80,30,81],[22,39,23,40],[22,42,24,44],[22,45,23,46],[22,48,24,50],[24,45,25,46],[22,69,23,70],[22,72,23,73],[22,75,23,76],[22,78,23,79],[22,81,23,82],[31,53,32,54],[38,62,39,63],[31,71,32,72],[29,23,30,24],[29,26,31,28],[29,29,30,30],[29,32,31,34],[29,35,30,36],[29,41,30,42],[26,3,27,10],[26,12,27,16],[26,18,27,22],[26,24,27,28],[26,30,27,34],[26,36,27,40],[26,78,27,82],[26,95,27,99],[26,101,27,105],[26,107,27,111],[26,66,27,70],[26,72,27,76],[26,42,27,46],[26,48,27,52],[26,54,27,58],[26,60,27,64],[24,63,25,64],[24,7,25,10],[24,15,25,16],[24,21,25,22],[24,27,25,28],[24,33,25,34],[24,39,25,40],[22,84,27,91],[24,69,25,70],[24,72,25,73],[24,75,25,76],[24,78,25,79],[24,81,25,82],[24,95,25,99],[22,57,23,58],[22,95,23,99],[19,15,20,19],[19,21,20,25],[19,27,20,31],[19,33,20,37],[19,113,20,117],[22,3,25,6],[22,7,23,10],[22,12,24,14],[22,15,23,16],[22,18,24,20],[22,21,23,22],[22,24,24,26],[22,27,23,28],[22,30,24,32],[19,75,20,79],[19,81,20,85],[19,87,20,91],[19,95,20,99],[19,101,20,105],[19,107,20,111],[19,39,20,43],[19,45,20,49],[22,101,23,105],[22,107,23,111],[24,101,25,105],[24,107,25,111],[22,113,32,117],[28,86,32,91],[29,17,30,18],[19,3,20,7],[22,54,24,56],[22,63,23,64],[22,66,24,68],[22,33,23,34],[22,36,24,38],[19,9,20,13],[31,95,32,99],[24,51,25,52],[24,57,25,58],[17,54,18,55],[17,57,18,58],[17,60,18,61],[17,63,18,64],[17,66,18,67],[17,69,18,70],[17,72,18,73],[17,75,18,76],[17,78,18,79],[17,81,18,82],[17,9,18,10],[17,12,18,13],[17,15,18,16],[17,18,18,19],[17,21,18,22],[17,24,18,25],[17,27,18,28],[29,3,32,12],[29,14,31,16],[29,38,31,40],[29,83,30,84],[29,95,30,99],[17,33,18,34],[17,36,18,37],[17,39,18,40],[17,42,18,43],[17,45,18,46],[17,48,18,49],[15,51,16,52],[15,45,16,46],[15,48,16,49],[22,60,24,62],[15,30,16,31],[15,33,16,34],[15,36,16,37],[15,39,16,40],[22,51,23,52],[17,30,18,31],[19,51,20,55],[19,57,20,61],[15,78,16,79],[15,81,16,82],[15,84,16,85],[15,87,16,91],[15,95,18,99],[15,101,18,105],[17,87,18,91],[15,60,16,61],[15,63,16,64],[15,66,16,67],[15,69,16,70],[15,72,16,73],[15,75,16,76],[15,42,16,43],[17,84,18,85],[17,51,18,52],[91,138,92,139],[15,54,16,55],[15,57,16,58],[19,63,20,67],[19,69,20,73],[31,107,32,111],[31,101,32,105],[29,44,31,46],[29,101,30,105],[29,107,30,111],[36,112,37,112],[36,113,46,117],[38,95,39,99],[38,101,39,105],[40,95,41,99],[40,101,41,105],[0,3,2,25],[0,44,2,72],[0,102,2,118],[6,54,6,56],[6,57,6,59],[6,60,6,62],[6,63,6,65],[6,66,6,68],[6,69,6,71],[6,72,6,74],[87,138,88,139],[89,138,90,139],[7,3,10,5],[6,3,6,5],[6,6,6,8],[6,9,6,11],[6,12,6,14],[6,15,6,17],[6,18,6,20],[6,21,6,23],[6,24,6,26],[15,3,18,7],[15,9,16,10],[15,12,16,13],[15,15,16,16],[15,18,16,19],[15,21,16,22],[15,24,16,25],[15,27,16,28],[15,107,18,111],[15,113,18,117],[3,3,5,29],[150,20,150,22],[150,23,150,26],[150,27,150,32],[150,33,150,35],[150,36,150,38],[150,41,150,43],[151,0,151,3],[151,4,151,8],[151,9,151,11],[151,12,151,13],[151,14,151,15],[151,16,151,19],[151,20,151,22],[151,25,151,26],[151,27,151,28],[151,29,151,32],[151,34,151,35],[151,36,151,38],[151,41,152,43],[152,0,152,3],[152,4,152,8],[152,9,152,11],[152,12,152,13],[152,14,152,15],[150,0,150,3],[150,4,150,8],[150,9,150,11],[150,12,150,13],[150,14,150,15],[150,16,150,19],[152,16,152,19],[153,41,153,43],[154,0,154,3],[154,4,154,8],[154,9,154,11],[154,12,154,13],[154,14,154,15],[154,16,154,19],[154,20,154,22],[154,25,154,26],[154,27,154,28],[154,29,154,32],[154,34,154,35],[154,36,154,38],[154,41,154,43],[152,20,152,22],[152,25,152,26],[152,27,152,28],[152,29,152,32],[152,34,152,35],[152,36,152,38],[153,0,153,3],[153,4,153,8],[153,9,153,11],[153,12,153,13],[153,14,153,15],[153,16,153,19],[153,20,153,22],[153,25,153,26],[153,27,153,28],[153,29,153,32],[153,34,153,35],[153,36,153,38],[155,20,155,22],[155,25,155,26],[155,27,155,28],[155,29,155,32],[155,34,155,35],[155,36,155,38],[156,0,156,3],[156,4,156,8],[156,9,156,11],[156,12,156,13],[156,14,156,15],[156,16,156,19],[156,20,156,22],[156,25,156,26],[156,27,156,28],[156,29,156,32],[156,34,156,35],[156,36,156,38],[155,0,155,3],[155,4,155,8],[155,9,155,11],[155,12,155,13],[155,14,155,15],[155,16,155,19],[157,20,157,22],[157,25,157,26],[157,27,157,28],[157,29,157,32],[157,34,157,35],[157,36,157,38],[158,0,158,3],[158,4,158,8],[158,9,158,11],[158,12,158,13],[158,14,158,15],[158,16,158,19],[158,20,158,22],[158,25,158,26],[158,27,158,28],[158,29,158,32],[158,34,158,35],[158,36,158,38],[157,0,157,3],[157,4,157,8],[157,9,157,11],[157,12,157,13],[157,14,157,15],[157,16,157,19],[159,34,159,35],[159,36,159,38],[160,0,160,3],[160,4,160,8],[160,9,160,11],[160,12,160,13],[160,14,160,15],[160,16,160,19],[160,20,160,22],[160,25,160,26],[160,27,160,28],[160,29,160,32],[160,34,160,35],[160,36,160,38],[159,4,159,8],[159,9,159,11],[159,12,159,13],[159,14,159,15],[159,16,159,19],[159,20,159,22],[159,25,159,26],[159,27,159,28],[159,29,159,32],[159,0,159,3],[161,29,161,32],[161,34,161,35],[161,36,161,38],[162,0,162,3],[162,4,162,8],[162,9,162,11],[162,12,162,13],[162,14,162,15],[162,16,162,19],[162,20,162,22],[162,25,162,26],[162,27,162,28],[162,29,162,32],[162,34,162,35],[162,36,162,38],[161,0,161,3],[161,4,161,8],[161,9,161,11],[161,12,161,13],[161,14,161,15],[161,16,161,19],[161,20,161,22],[161,25,161,26],[161,27,161,28],[163,29,163,32],[163,34,163,35],[163,36,163,38],[164,0,164,3],[164,4,164,8],[164,9,164,11],[164,12,164,13],[164,14,164,15],[164,16,164,19],[164,20,164,22],[164,25,164,26],[164,27,164,28],[164,29,164,32],[164,34,164,35],[164,36,164,38],[163,0,163,3],[163,4,163,8],[163,9,163,11],[163,12,163,13],[163,14,163,15],[163,16,163,19],[163,20,163,22],[163,25,163,26],[163,27,163,28],[165,29,165,32],[165,34,165,35],[165,36,165,38],[166,0,166,3],[166,4,166,8],[166,9,166,11],[166,12,166,13],[166,14,166,15],[166,16,166,19],[166,20,166,22],[166,25,166,26],[166,27,166,28],[166,29,166,32],[166,34,166,35],[166,36,166,38],[165,0,165,3],[165,4,165,8],[165,9,165,11],[165,12,165,13],[165,14,165,15],[165,16,165,19],[165,20,165,22],[165,25,165,26],[165,27,165,28],[167,29,167,32],[167,34,167,35],[167,36,167,38],[168,0,168,3],[168,4,168,8],[168,9,168,11],[168,12,168,13],[168,14,168,15],[168,16,168,19],[168,20,168,22],[168,25,168,26],[168,27,168,28],[168,29,168,32],[168,34,168,35],[168,36,168,38],[167,0,167,3],[167,4,167,8],[167,9,167,11],[167,12,167,13],[167,14,167,15],[167,16,167,19],[167,20,167,22],[167,25,167,26],[167,27,167,28],[169,29,169,32],[169,34,169,35],[169,36,169,38],[170,0,170,3],[170,4,170,8],[170,9,170,11],[170,12,170,13],[170,14,170,15],[170,16,170,19],[170,20,170,22],[170,25,170,26],[170,27,170,28],[170,29,170,32],[170,34,170,35],[170,36,170,38],[169,0,169,3],[169,4,169,8],[169,9,169,11],[169,12,169,13],[169,14,169,15],[169,16,169,19],[169,20,169,22],[169,25,169,26],[169,27,169,28],[171,29,171,32],[171,34,171,35],[171,36,171,38],[172,0,172,3],[172,4,172,8],[172,9,172,11],[172,12,172,13],[172,14,172,15],[172,16,172,19],[172,20,172,22],[172,25,172,26],[172,27,172,28],[172,29,172,32],[172,34,172,35],[172,36,172,38],[171,0,171,3],[171,4,171,8],[171,9,171,11],[171,12,171,13],[171,14,171,15],[171,16,171,19],[171,20,171,22],[171,25,171,26],[171,27,171,28],[173,29,173,32],[173,34,173,35],[173,36,173,38],[174,0,174,3],[174,4,174,8],[174,9,174,11],[174,12,174,13],[174,14,174,15],[174,16,174,19],[174,20,174,22],[174,25,174,26],[174,27,174,28],[174,29,174,32],[174,34,174,35],[174,36,174,38],[173,0,173,3],[173,4,173,8],[173,9,173,11],[173,12,173,13],[173,14,173,15],[173,16,173,19],[173,20,173,22],[173,25,173,26],[173,27,173,28],[175,29,175,32],[175,34,175,35],[175,36,175,38],[176,0,176,3],[176,4,176,8],[176,9,176,11],[176,12,176,13],[176,14,176,15],[176,16,176,19],[176,20,176,22],[176,25,176,26],[176,27,176,28],[176,29,176,32],[176,34,176,35],[176,36,176,38],[175,0,175,3],[175,4,175,8],[175,9,175,11],[175,12,175,13],[175,14,175,15],[175,16,175,19],[175,20,175,22],[175,25,175,26]],"merged_total":2696,"flags":["merged_cut"]}
[null,null,null,"株式会社つくばＩＴパートナー",null,null,null,null,null,null,null,null,null,null,null,null,null,null,null,null,null,null,null,null,null,null,null,null,null,null,null,null,null,null,null,null,null,null,null,null,null,null,null,null,"【キーボード操作練習】",null,null,null,null,null,null,null,null,null,null,null,null,null,null,null,null,null,null,null,null,null,null,null,null,null,null,null,null,null,null,null,null,null,null,null,null,null,null,null,null,null,null,null,null,null,null,null,null,null,null,null,null,null,null,null,null,null,{"$f":"TODAY()","v":"2021-02-25"}]
[]
[]
[null,null,null,"※キー入力が固まったらESCで復帰します。"]
[]
[]
[null,null,null,1,null,null,2,null,null,3,null,null,4,null,null,5,null,null,6,null,null,7,null,null,8,null,null,9,null,null,10,null,null,11,null,null,12,null,null,13,null,null,14,null,null,15,null,null,16,null,null,17,null,null,18,null,null,19,null,null,20,null,null,21,null,null,22,null,null,23,null,null,24,null,null,25,null,null,26,null,null,27,null,null,28,null,null,29,null,null,30]
[]
[]
[]
[null,null,null,null,null,null,null,null,null,null,null,null,null,null,null,null,null,null,null,null,null,null,null,null,null,null,null,null,null,null,null,null,null,null,null,null,null,null,null,null,null,null,null,null,null,null,null,null,null,null,null,null,null,null,null,null,null,null,null,null,null,null,null,null,null,null,null,null,null,null,null,null,null,null,null,null,null,null,null,null,null,null,null,null,null,null,null,null,null,null,null,null,null,null,null,null,null,null,null,null,null,null,null,null,null,null,null,null,null,null,"【→】"]
[null,null,null,null,null,null,null,null,null,null,null,null,null,null,null,null,null,null,null,null,null,null,null,null,null,null,null,null,null,null,null,null,null,null,null,null,null,null,null,null,null,null,null,null,null,null,null,null,null,null,null,null,null,null,null,null,null,null,null,null,null,null,null,null,null,null,null,null,null,null,null,null,null,null,null,null,null,null,null,null,null,null,null,null,null,null,null,null,null,null,null,null,null,null,null,null,"【ENTER】"]
[]
[]
[]
[null,null,null,"半角/\n全角",null,null,null,null,null,"!",null,null,null,null,null,"\"",null,null,null,null,null,"#",null,null,"ぁ",null,null,"$",null,null,"ぅ",null,null,"%",null,null,"ぇ",null,null,"&",null,null,"ぉ",null,null,"",null,null,"ゃ",null,null,"(",null,null,"ゅ",null,null,")",null,null,"ょ",null,null,null,null,null,"を",null,null,"=",null,null,null,null,null,"～",null,null,null,null,null,"|",null,null,null,null,null,"Back",null,null,null,null,null,null,null,"Tab",null,null,null,null,null,"/",null,null,null,null,null,"*",null,null,null,null,null,"-"]
[]
[null,null,null,null,null,null,null,null,null,"1",null,null,"ぬ",null,null,"2",null,null,"ふ",null,null,"3",null,null,"あ",null,null,"4",null,null,"う",null,null,"5",null,null,"え",null,null,"6",null,null,"お",null,null,"7",null,null,"や",null,null,"8",null,null,"ゆ",null,null,"9",null,null,"よ",null,null,"0",null,null,"わ",null,null,"-",null,null,"ほ",null,null,"^",null,null,"へ",null,null,"\\",null,null,"ー",null,null,"Space"]
[]
[null,null,null,"左小",null,null,null,null,null,"左小",null,null,null,null,null,"左薬",null,null,null,null,null,"左中",null,null,null,null,null,"左人",null,null,null,null,null,"左人",null,null,null,null,null,"右人",null,null,null,null,null,"右人",null,null,null,null,null,"右中",null,null,null,null,null,"右薬",null,null,null,null,null,"右小",null,null,null,null,null,"右小",null,null,null,null,null,"右小",null,null,null,null,null,"右小",null,null,null,null,null,"右小",null,null,null,null,null,null,null,null,null,null,null,null,null,"右中",null,null,null,null,null,"右薬",null,null,null,null,null,"右薬"]
[]
[]
[null,null,null,"Tab",null,null,null,"←",null,null,null,null,"Q",null,null,null,null,null,"W",null,null,null,null,null,"E",null,null,null,null,null,"R",null,null,null,null,null,"T",null,null,null,null,null,"Y",null,null,null,null,null,"U",null,null,null,null,null,"I",null,null,null,null,null,"O",null,null,null,null,null,"P",null,null,null,null,null,"`",null,null,null,null,null,"{",null,null,"「",null,null,"Enter",null,null,null,null,null,null,null,null,null,null,"7",null,null,null,null,8,"8",null,null,null,null,null,"9",null,null,null,null,null,"+"]
[]
[null,null,null,null,null,null,null,"→",null,null,null,null,null,null,null,"た",null,null,null,null,null,"て",null,null,null,null,null,"い",null,null,null,null,null,"す",null,null,null,null,null,"か",null,null,null,null,null,"ん",null,null,null,null,null,"な",null,null,null,null,null,"に",null,null,null,null,null,"ら",null,null,null,null,null,"せ",null,null,"@",null,null,"゛",null,null,"[",null,null,"゜",null,null,null,null,null,null,null,null,null,null,null,null,null,"Home",null,null,null,null,null,"↑",null,null,null,null,null,"PgUp"]
[]
[null,null,null,"左小",null,null,null,null,null,null,null,null,"左小",null,null,null,null,null,"左薬",null,null,null,null,null,"左中",null,null,null,null,null,"左人",null,null,null,null,null,"左人",null,null,null,null,null,"右人",null,null,null,null,null,"右人",null,null,null,null,null,"右中",null,null,null,null,null,"右薬",null,null,null,null,null,"右小",null,null,null,null,null,"右小",null,null,null,null,null,"右小",null,null,null,null,null,null,null,null,null,null,null,null,null,null,null,null,"右人",null,null,null,null,null,"右中",null,null,null,null,null,"右薬"]
[]
[]
[null,null,null,"Caps Lock",null,null,null,null,null,null,null,null,null,null,"A",null,null,null,null,null,"S",null,null,null,null,null,"D",null,null,null,null,null,"F",null,null,null,null,null,"G",null,null,null,null,null,"H",null,null,null,null,null,"J",null,null,null,null,null,"K",null,null,null,null,null,"L",null,null,null,null,null,"+",null,null,null,null,null,"*",null,null,null,null,null,"}",null,null,"」",null,null,null,null,null,null,null,null,null,null,null,"4",null,null,null,null,null,"5",null,null,null,null,null,"6"]
[]
[null,null,null,null,null,null,null,null,null,null,null,null,null,null,null,null,null,"ち",null,null,null,null,null,"と",null,null,null,null,null,"し",null,null,null,null,null,"は",null,null,null,null,null,"き",null,null,null,null,null,"く",null,null,null,null,null,"ま",null,null,null,null,null,"の",null,null,null,null,null,"り",null,null,";",null,null,"れ",null,null,":",null,null,"け",null,null,"]",null,null,"む",null,null,null,null,null,null,null,null,null,null,null,"←",null,null,null,null,null,null,null,null,null,null,null,"→"]
[]
[null,null,null,"左小",null,null,null,null,null,null,null,null,null,null,"左小",null,null,null,null,null,"左薬",null,null,null,null,null,"左中",null,null,null,null,null,"左人",null,null,null,null,null,"左人",null,null,null,null,null,"右人",null,null,null,null,null,"右人",null,null,null,null,null,"右中",null,null,null,null,null,"右薬",null,null,null,null,null,"右小",null,null,null,null,null,"右小",null,null,null,null,null,"右小",null,null,null,null,null,"右小",null,null,null,null,null,null,null,null,"右人",null,null,null,null,null,"右中",null,null,null,null,null,"右薬",null,null,null,null,null,"右小"]
[]
[]
[null,null,null,"⇧ Shift",null,null,null,null,null,null,null,null,null,null,null,null,null,"Z",null,null,null,null,null,"X",null,null,null,null,null,"C",null,null,null,null,null,"V",null,null,null,null,null,"B",null,null,null,null,null,"N",null,null,null,null,null,"M",null,null,null,null,null,"<",null,null,"、",null,null,">",null,null,"。",null,null,"?",null,null,"・",null,null,"_",null,null,null,null,null,"⇧ Shift",null,null,null,null,null,null,null,null,null,null,null,"1",null,null,null,null,null,"2",null,null,null,null,null,"3",null,null,null,null,null,"Enter"]
[]
[null,null,null,null,null,null,null,null,null,null,null,null,null,null,null,null,null,null,null,null,"つ",null,null,null,null,null,"さ",null,null,null,null,null,"そ",null,null,null,null,null,"ひ",null,null,null,null,null,"こ",null,null,null,null,null,"み",null,null,null,null,null,"も",null,null,",",null,null,"ね",null,null,".",null,null,"る",null,null,"/",null,null,"め",null,null,"＼",null,null,"ろ",null,null,null,null,null,null,null,null,null,null,null,null,null,null,"End",null,null,null,null,null,"↓",null,null,null,null,null,"PgDn"]
[]
[null,null,null,"左小",null,null,null,null,null,null,null,null,null,null,null,null,null,"左小",null,null,null,null,null,"左薬",null,null,null,null,null,"左中",null,null,null,null,null,"左人",null,null,null,null,null,"左人",null,null,null,null,null,"右人",null,null,null,null,null,"右人",null,null,null,null,null,"右中",null,null,null,null,null,"右薬",null,null,null,null,null,"右小",null,null,null,null,null,"右小",null,null,null,null,null,"右小",null,null,null,null,null,null,null,null,null,null,null,"右人",null,null,null,null,null,"右中",null,null,null,null,null,"右薬"]
[]
[]
[null,null,null,"Ctrl",null,null,null,null,null,null,null,"Fn",null,null,null,null,null,null,null,null,null,null,null,"Alt",null,null,null,null,null,"無変換",null,null,null,null,null,null,"空",null,null,null,null,null,null,null,null,null,null,null,null,null,null,null,"変換",null,null,null,null,null,null,"カタカナ\nひらがな\nローマ字",null,null,null,null,null,null,null,null,null,null,null,"Ctrl",null,null,null,null,null,null,null,null,null,null,null,null,null,null,null,null,null,null,null,null,null,null,null,"0",null,null,null,null,null,"00",null,null,null,null,null,"."]
[]
[null,null,null,null,null,null,null,null,null,null,null,null,null,null,null,null,null,null,null,null,null,null,null,null,null,null,null,null,null,null,null,null,null,null,null,null,null,null,null,null,null,null,null,null,null,null,null,null,null,null,null,null,null,null,null,null,null,null,null,null,null,null,null,null,null,null,null,null,null,null,null,null,null,null,null,null,null,null,null,null,null,null,null,null,null,null,null,null,null,null,null,null,null,null,null,"Ins",null,null,null,null,null,null,null,null,null,null,null,"Del"]
[]
[null,null,null,"左小",null,null,null,null,null,null,null,"左小",null,null,null,null,null,null,null,null,null,null,null,null,null,null,null,null,null,"左親",null,null,null,null,null,null,"左親",null,null,null,null,null,null,null,"右親",null,null,null,null,null,null,null,"右親",null,null,null,null,null,null,null,null,null,null,null,null,null,null,null,null,null,null,null,null,null,null,null,null,null,null,null,null,null,null,null,null,null,null,null,null,null,null,null,null,null,null,"右人",null,null,null,null,null,"右中",null,null,null,null,null,"右薬",null,null,null,null,null,"右小"]
[]
[]
[]
[]
[]
[null,null,null,null,null,null,null,null,null,null,null,null,null,null,null,null,null,null,null,null,null,null,null,null,null,null,null,null,null,null,null,null,null,null,null,null,null,null,null,null,null,null,null,null,null,null,null,null,null,null,null,null,null,null,null,null,null,null,null,null,null,null,null,null,null,null,null,null,null,null,null,null,null,null,null,null,null,{"$f":"S110&\"\"","v":""}]
[]
[]
[]
[null,null,null,null,null,null,null,null,null,null,null,null,null,null,null,null,null,null,null,null,null,null,null,null,null,null,null,null,null,null,null,null,null,null,null,null,null,null,null,null,null,null,null,null,null,null,null,null,null,null,null,null,null,null,null,null,null,null,null,null,null,null,null,null,null,null,null,null,null,null,null,null,null,null,null,null,null,null,null,null,null,null,null,null,null,null,null,null,null,null,null,null,null,null,null,null,null,null,null,null,null,null,"【DEL】",null,null,null,null,null,null,null,null,null,null,"【F10】"]
[]
[null,null,null,null,null,null,null,null,null,null,null,null,null,null,null,null,null,null,null,null,null,null,null,null,null,null,null,null,null,null,null,null,null,null,null,null,null,null,null,null,null,null,null,null,null,null,null,null,null,null,null,null,null,null,null,null,null,null,null,null,null,null,null,null,null,null,null,null,null,null,null,null,null,null,null,null,null,null,null,null,null,null,null,null,null,null,null,null,null,null,null,null,null,null,null,null,null,null,null,null,null,null,null,null,null,null,null,null,null,null,null,null,null,null,null,null,null,null,null,"Copyright © 2017 Tsukuba IT Partner Co., Ltd. All Rights Reserved."]
[]
[]
[]
[]
[]
[]
[]
[]
[]
[]
[]
[]
[]
[]
[]
[]
[]
[]
[]
[null,null,null,"","","",null,null,null,null,null,"",""]
[]
[]
[]
[]
[]
[]
[]
[null,null,null,null,1,null,2,null,3,null,4,null,5,null,6,null,7,null,8,null,9,null,10,null,11,null,12,null,13,null,14,null,15,null,16,null,17,null,18,null,19,null,20,null,21,null,22,null,23,null,24,null,25,null,26,null,27,null,28,null,29,null,30,null,31,null,32,null,33,null,34,null,35,null,36,null,37,null,38,null,39,null,40,null,41,null,42,null,43,null,44,null,45,null,46,null,47,null,48,null,49,null,50,null,51,null,1,null,{"$f":"DC88+1","v":2},null,{"$f":"DE88+1","v":3},null,{"$f":"DG88+1","v":4},null,{"$f":"DI88+1","v":5},null,{"$f":"DK88+1","v":6},null,{"$f":"DM88+1","v":7},null,{"$f":"DO88+1","v":8},null,{"$f":"DQ88+1","v":9},null,{"$f":"DS88+1","v":10},null,{"$f":"DU88+1","v":11},null,{"$f":"DW88+1","v":12},null,{"$f":"DY88+1","v":13},null,{"$f":"EA88+1","v":14},null,{"$f":"EC88+1","v":15},null,{"$f":"EE88+1","v":16},null,{"$f":"EG88+1","v":17}]
[]
[]
[]
[null,null,null,null,null,null,null,null,null,null,null,null,null,null,null,null,null,null,null,null,null,null,null,null,null,null,null,null,null,null,null,null,null,null,null,null,null,null,null,null,null,null,null,null,null,null,null,null,null,null,null,null,null,null,null,null,null,null,null,null,null,null,null,null,null,null,null,null,null,null,null,null,null,null,null,null,null,null,null,null,null,null,null,null,null,null,null,null,null,null,null,null,null,null,null,null,null,null,"/",null,"＼",null,"bs",null,"en",null,"0",null,"1",null,"2",null,"3",null,"4",null,"5",null,"6",null,"7",null,"8",null,"9",null,".",null,"/",null,"*",null,"-",null,"+",null,"en",null,""]
[]
[]
[]
[]
[]
[]
[]
[]
[]
[]
[]
[]
[]
[]
[]
[]
[]
[null,null,null,null,{"$f":"IF(ISERROR(HLOOKUP(\"○\",$E$90:$CT$97,3,FALSE))=TRUE,\"\",HLOOKUP(\"○\",$E$90:$CT$97,3,FALSE))","v":""},null,{"$f":"IF(ISERROR(HLOOKUP(\"○\",E101:AL108,3,FALSE))=TRUE,\"\",HLOOKUP(\"○\",E101:AL108,3,FALSE))","v":""}]
[]
[]
[]
[]
[]
[null,null,null,null,null,null,null,null,null,null,null,null,null,null,null,null,null,null,"selkey",null,null,null,"selyoko",null,null,null,"gyoko"]
[]
[null,null,false,null,null,null,false,null,null,null,true,null,null,null,null,null,null,null,"0",null,null,null,1]
[]
[]
[]
[]
[]
[]
[]
[]
[]
[]
[]
[]
[]
[]
[]
[]
[]
[]
[]
[]
[]
[]
[]
[]
[]
[]
[]
[]
[]
[]
[]
[]
["キー名",null,null,null,"仮想キー定数",null,null,null,null,"値",null,null,"16進",null,"10進",null,"Onkey名",null,null,null,"マクロ",null,null,"表示",null,null,null,"キーテーブル",null,null,null,null,null,"表示",null,null,"読込内容",null,null,"選",null,"押下キー"]
["LeftClick",null,null,null,"VK_LBUTTON",null,null,null,null,"&H1",null,null,{"$f":"MID(J152,3,3)","v":"1"},null,{"$f":"IF(M152=\"\",\"\",HEX2DEC(M152))","v":1},null,"",null,null,null,null,null,null,null,null,null,null,0,null,{"$f":"IFERROR(INDEX(A:A,MATCH(AB152,O:O,0)),\"\")","v":""},null,null,null,{"$f":"IFERROR(INDEX(Y:Y,MATCH(AB152,O:O,0))&\"\",\"\")","v":""},{"$f":"IF(AH152=\"\",\"\",IFERROR(INDEX(Z:Z,MATCH(AB152,O:O,0)),\"\"))","v":""},null,null,null,null,{"$f":"IF(OR(AK152=128,AK152=129),1,\"\")","v":""},null,{"$f":"IFERROR(INDEX(AD:AD,MATCH(1,AN:AN,0)),\"\")","v":""}]
["RightClick",null,null,null,"VK_RBUTTON",null,null,null,null,"&H2",null,null,"2",null,{"$f":"IF(M153=\"\",\"\",HEX2DEC(M153))","v":2},null,"",null,null,null,null,null,null,null,null,null,null,{"$f":"AB152+1","v":1},null,"LeftClick",null,null,null,"","",null,null,null,null,{"$f":"IF(OR(AK153=128,AK153=129),1,\"\")","v":""}]
["Cancel",null,null,null,"VK_CANCEL",null,null,null,null,"&H3",null,null,"3",null,3,null,"",null,null,null,null,null,null,null,null,null,null,{"$f":"AB153+1","v":2},null,"RightClick",null,null,null,"","",null,null,null,null,"",null,{"$f":"IFERROR(INDEX(AH:AH,MATCH(1,AN:AN,0)),\"\")","v":""}]
["MiddleClick",null,null,null,"VK_MBUTTON",null,null,null,null,"&H4",null,null,"4",null,4,null,"",null,null,null,null,null,null,null,null,null,null,3,null,"Cancel",null,null,null,"","",null,null,null,null,"",null,{"$f":"IFERROR(INDEX(AI:AI,MATCH(1,AN:AN,0)),\"\")","v":""}]
["BackSpace",null,null,null,"VK_BACK",null,null,null,null,"&H8",null,null,"8",null,8,null,"{BS}",null,null,null,"KeyPush",null,null,"○","bs",103,null,4,null,"MiddleClick",null,null,null,"","",null,null,null,null,""]
["TAB",null,null,null,"VK_TAB",null,null,null,null,"&H9",null,null,"9",null,9,null,"{TAB}",null,null,null,"KeyPush",null,null,"◎","ta",37,null,5,null,"",null,null,null,"","",null,null,null,null,""]
["Clear",null,null,null,"VK_CLEAR",null,null,null,null,"&HC",null,null,"C",null,12,null,"{CLEAR}",null,null,null,"KeyPush",null,null,null,null,null,null,6,null,0,null,null,null,"11",0,null,null,null,null,""]
["Enter",null,null,null,"VK_RETURN",null,null,null,null,"&HD",null,null,"D",null,13,null,"{RETURN}",null,null,null,"KeyPush",null,null,"○","en",105,null,7,null,"",null,null,null,"","",null,null,null,null,""]
["LeftShift",null,null,null,"VK_SHIFT",null,null,null,null,"&H10",null,null,"10",null,16,null,"",null,null,null,null,null,null,null,null,null,null,8,null,"BackSpace",null,null,null,"bs",103,null,null,null,null,""]
["RightShift",null,null,null,"VK_RSHIFT",null,null,null,null,"&HA1",null,null,"A1",null,161,null,"",null,null,null,null,null,null,null,null,null,null,9,null,"TAB",null,null,null,"ta",37,null,null,null,null,""]
["LeftControl",null,null,null,"VK_CONTROL",null,null,null,null,"&H11",null,null,"11",null,17,null,"",null,null,null,null,null,null,null,null,null,null,10,null,"",null,null,null,"","",null,null,null,null,""]
["RightControl",null,null,null,"VK_RCONTROL",null,null,null,null,"&HA3",null,null,"A3",null,163,null,"",null,null,null,null,null,null,null,null,null,null,11,null,"",null,null,null,"","",null,null,null,null,"",null,null,null,null,null,null,"　"]
["LeftMenu",null,null,null,"VK_MENU",null,null,null,null,"&H12",null,null,"12",null,18,null,"",null,null,null,null,null,null,null,null,null,null,12,null,"Clear",null,null,null,"","",null,null,null,null,""]
["RightMenu",null,null,null,"VK_RMENU",null,null,null,null,"&HA5",null,null,"A5",null,165,null,"",null,null,null,null,null,null,null,null,null,null,13,null,"Enter",null,null,null,"en",105,null,null,null,null,""]
["Pause",null,null,null,"VK_PAUSE",null,null,null,null,"&H13",null,null,"13",null,19,null,"{BREAK}",null,null,null,"KeyPush",null,null,null,null,null,null,14,null,"",null,null,null,"","",null,null,null,null,""]
["CapsLock",null,null,null,"VK_CAPITAL",null,null,null,null,"&H14",null,null,"14",null,20,null,"{CAPSLOCK}",null,null,null,"KeyPush",null,null,null,null,null,null,15,null,"",null,null,null,"","",null,null,null,null,""]
["Esc",null,null,null,"VK_ESCAPE",null,null,null,null,"&H1B",null,null,"1B",null,27,null,"{ESC}",null,null,null,"KeyPush",null,null,null,null,null,null,16,null,"LeftShift",null,null,null,"","",null,null,null,null,""]
["Space",null,null,null,"VK_SPACE",null,null,null,null,"&H20",null,null,"20",null,32,null,"\" \"",null,null,null,"KeyPush",null,null,"○","空",77,null,17,null,"LeftControl",null,null,null,"","",null,null,null,null,""]
["PageUp",null,null,null,"VK_PRIOR",null,null,null,null,"&H21",null,null,"21",null,33,null,"{PGUP}",null,null,null,"KeyPush",null,null,null,null,null,null,18,null,"LeftMenu",null,null,null,"","",null,null,null,null,""]
["PageDown",null,null,null,"VK_NEXT",null,null,null,null,"&H22",null,null,"22",null,34,null,"{PGDN}",null,null,null,"KeyPush",null,null,null,null,null,null,19,null,"Pause",null,null,null,"","",null,null,null,null,""]
["End",null,null,null,"VK_END",null,null,null,null,"&H23",null,null,"23",null,35,null,"{END}",null,null,null,"KeyPush",null,null,null,null,null,null,20,null,"CapsLock",null,null,null,"","",null,null,null,null,""]
["Home",null,null,null,"VK_HOME",null,null,null,null,"&H24",null,null,"24",null,36,null,"{HOME}",null,null,null,"KeyPush",null,null,null,null,null,null,21,null,"",null,null,null,"","",null,null,null,null,""]
["←",null,null,null,"VK_LEFT",null,null,null,null,"&H25",null,null,"25",null,37,null,"{LEFT}",null,null,null,"KeyPush",null,null,null,null,null,null,22,null,"",null,null,null,"","",null,null,null,null,""]
["↑",null,null,null,"VK_UP",null,null,null,null,"&H26",null,null,"26",null,38,null,"{UP}",null,null,null,"KeyPush",null,null,null,null,null,null,23,null,"",null,null,null,"","",null,null,null,null,""]
["→",null,null,null,"VK_RIGHT",null,null,null,null,"&H27",null,null,"27",null,39,null,"{RIGHT}",null,null,null,"KeyPush",null,null,null,null,null,null,24,null,"",null,null,null,"","",null,null,null,null,""]
["↓",null,null,null,"VK_DOWN",null,null,null,null,"&H28",null,null,"28",null,40,null,"{DOWN}",null,null,null,"KeyPush",null,null,null,null,null,null,25,null,"",null,null,null,"","",null,null,null,null,""]
["Select",null,null,null,"VK_SELECT",null,null,null,null,"&H29",null,null,"29",null,41,null,"",null,null,null,null,null,null,null,null,null,null,26,null,"",null,null,null,"","",null,null,null,null,""]
["PrintScreen",null,null,null,"VK_PRINT",null,null,null,null,"&H2A",null,null,"2A",null,42,null,"",null,null,null,null,null,null,null,null,null,null,27,null,"Esc",null,null,null,"","",null,null,null,null,""]
["Execute",null,null,null,"VK_EXECUTE",null,null,null,null,"&H2B",null,null,"2B",null,43,null,"",null,null,null,null,null,null,null,null,null,null,28,null,"",null,null,null,"","",null,null,null,null,""]
["SnapShot",null,null,null,"VK_SNAPSHOT",null,null,null,null,"&H2C",null,null,"2C",null,44,null,"",null,null,null,null,null,null,null,null,null,null,29,null,"",null,null,null,"","",null,null,null,null,""]
["Insert",null,null,null,"VK_INSERT",null,null,null,null,"&H2D",null,null,"2D",null,45,null,"{INSERT}",null,null,null,"KeyPush",null,null,null,null,null,null,30,null,"",null,null,null,"","",null,null,null,null,""]
["Delete",null,null,null,"VK_DELETE",null,null,null,null,"&H2E",null,null,"2E",null,46,null,"{DEL}",null,null,null,"KeyPush",null,null,null,null,null,null,31,null,"",null,null,null,"","",null,null,null,null,""]
["Help",null,null,null,"VK_HELP",null,null,null,null,"&H2F",null,null,{"$f":"MID(J184,3,3)","v":"2F"},null,47,null,"{HELP}",null,null,null,"KeyPush",null,null,null,null,null,null,32,null,"Space",null,null,null,"空",77,null,null,null,null,""]
["0",null,null,null,"VK_0",null,null,null,null,"&H30",null,null,"30",null,48,null,"0",null,null,null,"KeyPush",null,null,"○",0,5,null,33,null,"PageUp",null,null,null,"","",null,null,null,null,""]
["1",null,null,null,"VK_1",null,null,null,null,"&H31",null,null,"31",null,49,null,"1",null,null,null,"KeyPush",null,null,"○",1,7,null,34,null,"PageDown",null,null,null,"","",null,null,null,null,""]
["2",null,null,null,"VK_2",null,null,null,null,"&H32",null,null,"32",null,50,null,"2",null,null,null,"KeyPush",null,null,"○",2,9,null,35,null,"End",null,null,null,"","",null,null,null,null,""]
["3",null,null,null,"VK_3",null,null,null,null,"&H33",null,null,"33",null,51,null,"3",null,null,null,"KeyPush",null,null,"○",3,11,null,36,null,"Home",null,null,null,"","",null,null,null,null,""]
["4",null,null,null,"VK_4",null,null,null,null,"&H34",null,null,"34",null,52,null,"4",null,null,null,"KeyPush",null,null,"○",4,13,null,37,null,"←",null,null,null,"","",null,null,null,null,""]
["5",null,null,null,"VK_5",null,null,null,null,"&H35",null,null,"35",null,53,null,"5",null,null,null,"KeyPush",null,null,"○",5,15,null,38,null,"↑",null,null,null,"","",null,null,null,null,""]
["6",null,null,null,"VK_6",null,null,null,null,"&H36",null,null,"36",null,54,null,"6",null,null,null,"KeyPush",null,null,"○",6,17,null,39,null,"→",null,null,null,"","",null,null,null,null,""]
["7",null,null,null,"VK_7",null,null,null,null,"&H37",null,null,"37",null,55,null,"7",null,null,null,"KeyPush",null,null,"○",7,19,null,40,null,"↓",null,null,null,"","",null,null,null,null,""]
["8",null,null,null,"VK_8",null,null,null,null,"&H38",null,null,"38",null,56,null,"8",null,null,null,"KeyPush",null,null,"○",8,21,null,41,null,"Select",null,null,null,"","",null,null,null,null,""]
["9",null,null,null,"VK_9",null,null,null,null,"&H39",null,null,"39",null,57,null,"9",null,null,null,"KeyPush",null,null,"○",9,23,null,42,null,"PrintScreen",null,null,null,"","",null,null,null,null,""]
["A",null,null,null,"VK_A",null,null,null,null,"&H41",null,null,"41",null,65,null,"a",null,null,null,"KeyPush",null,null,"○","A",45,null,43,null,"Execute",null,null,null,"","",null,null,null,null,""]
["B",null,null,null,"VK_B",null,null,null,null,"&H42",null,null,"42",null,66,null,"b",null,null,null,"KeyPush",null,null,"○","B",71,null,44,null,"SnapShot",null,null,null,"","",null,null,null,null,""]
["C",null,null,null,"VK_C",null,null,null,null,"&H43",null,null,"43",null,67,null,"c",null,null,null,"KeyPush",null,null,"○","C",67,null,45,null,"Insert",null,null,null,"","",null,null,null,null,""]
["D",null,null,null,"VK_D",null,null,null,null,"&H44",null,null,"44",null,68,null,"d",null,null,null,"KeyPush",null,null,"○","D",49,null,46,null,"Delete",null,null,null,"","",null,null,null,null,""]
["E",null,null,null,"VK_E",null,null,null,null,"&H45",null,null,"45",null,69,null,"e",null,null,null,"KeyPush",null,null,"○","E",29,null,47,null,"Help",null,null,null,"","",null,null,null,null,""]
["F",null,null,null,"VK_F",null,null,null,null,"&H46",null,null,"46",null,70,null,"f",null,null,null,"KeyPush",null,null,"○","F",51,null,48,null,"0",null,null,null,"0",5,null,null,null,null,""]
["G",null,null,null,"VK_G",null,null,null,null,"&H47",null,null,"47",null,71,null,"g",null,null,null,"KeyPush",null,null,"○","G",53,null,49,null,"1",null,null,null,"1",7,null,null,null,null,""]
["H",null,null,null,"VK_H",null,null,null,null,"&H48",null,null,"48",null,72,null,"h",null,null,null,"KeyPush",null,null,"○","H",55,null,50,null,"2",null,null,null,"2",9,null,null,null,null,""]
["I",null,null,null,"VK_I",null,null,null,null,"&H49",null,null,"49",null,73,null,"i",null,null,null,"KeyPush",null,null,"○","I",39,null,51,null,"3",null,null,null,"3",11,null,null,null,null,""]
["J",null,null,null,"VK_J",null,null,null,null,"&H4A",null,null,"4A",null,74,null,"j",null,null,null,"KeyPush",null,null,"○","J",57,null,52,null,"4",null,null,null,"4",13,null,null,null,null,""]
["K",null,null,null,"VK_K",null,null,null,null,"&H4B",null,null,"4B",null,75,null,"k",null,null,null,"KeyPush",null,null,"○","K",59,null,53,null,"5",null,null,null,"5",15,null,null,null,null,""]
["L",null,null,null,"VK_L",null,null,null,null,"&H4C",null,null,"4C",null,76,null,"l",null,null,null,"KeyPush",null,null,"○","L",61,null,54,null,"6",null,null,null,"6",17,null,null,null,null,""]
["M",null,null,null,"VK_M",null,null,null,null,"&H4D",null,null,"4D",null,77,null,"m",null,null,null,"KeyPush",null,null,"○","M",75,null,55,null,"7",null,null,null,"7",19,null,null,null,null,""]
["N",null,null,null,"VK_N",null,null,null,null,"&H4E",null,null,"4E",null,78,null,"n",null,null,null,"KeyPush",null,null,"○","N",73,null,56,null,"8",null,null,null,"8",21,null,null,null,null,""]
["O",null,null,null,"VK_O",null,null,null,null,"&H4F",null,null,"4F",null,79,null,"o",null,null,null,"KeyPush",null,null,"○","O",41,null,57,null,"9",null,null,null,"9",23,null,null,null,null,""]
["P",null,null,null,"VK_P",null,null,null,null,"&H50",null,null,"50",null,80,null,"p",null,null,null,"KeyPush",null,null,"○","P",43,null,58,null,"",null,null,null,"","",null,null,null,null,""]
["Q",null,null,null,"VK_Q",null,null,null,null,"&H51",null,null,"51",null,81,null,"q",null,null,null,"KeyPush",null,null,"○","Q",25,null,59,null,"",null,null,null,"","",null,null,null,null,""]
["R",null,null,null,"VK_R",null,null,null,null,"&H52",null,null,"52",null,82,null,"r",null,null,null,"KeyPush",null,null,"○","R",31,null,60,null,"",null,null,null,"","",null,null,null,null,""]
["S",null,null,null,"VK_S",null,null,null,null,"&H53",null,null,"53",null,83,null,"s",null,null,null,"KeyPush",null,null,"○","S",47,null,61,null,"",null,null,null,"","",null,null,null,null,""]
["T",null,null,null,"VK_T",null,null,null,null,"&H54",null,null,"54",null,84,null,"t",null,null,null,"KeyPush",null,null,"○","T",33,null,62,null,"",null,null,null,"","",null,null,null,null,""]
["U",null,null,null,"VK_U",null,null,null,null,"&H55",null,null,"55",null,85,null,"u",null,null,null,"KeyPush",null,null,"○","U",37,null,63,null,"",null,null,null,"","",null,null,null,null,""]
["V",null,null,null,"VK_V",null,null,null,null,"&H56",null,null,{"$f":"MID(J216,3,3)","v":"56"},null,86,null,"v",null,null,null,"KeyPush",null,null,"○","V",69,null,64,null,{"$f":"IFERROR(INDEX(A:A,MATCH(AB216,O:O,0)),\"\")","v":""},null,null,null,{"$f":"IFERROR(INDEX(Y:Y,MATCH(AB216,O:O,0))&\"\",\"\")","v":""},{"$f":"IF(AH216=\"\",\"\",IFERROR(INDEX(Z:Z,MATCH(AB216,O:O,0)),\"\"))","v":""},null,null,null,null,""]
["W",null,null,null,"VK_W",null,null,null,null,"&H57",null,null,"57",null,{"$f":"IF(M217=\"\",\"\",HEX2DEC(M217))","v":87},null,"w",null,null,null,"KeyPush",null,null,"○","W",27,null,65,null,"A",null,null,null,"A",45,null,null,null,null,{"$f":"IF(OR(AK217=128,AK217=129),1,\"\")","v":""}]
["X",null,null,null,"VK_X",null,null,null,null,"&H58",null,null,"58",null,88,null,"x",null,null,null,"KeyPush",null,null,"○","X",65,null,{"$f":"AB217+1","v":66},null,"B",null,null,null,"B",71,null,null,null,null,""]
["Y",null,null,null,"VK_Y",null,null,null,null,"&H59",null,null,"59",null,89,null,"y",null,null,null,"KeyPush",null,null,"○","Y",35,null,67,null,"C",null,null,null,"C",67,null,null,null,null,""]
["Z",null,null,null,"VK_Z",null,null,null,null,"&H5A",null,null,"5A",null,90,null,"z",null,null,null,"KeyPush",null,null,"○","Z",63,null,68,null,"D",null,null,null,"D",49,null,null,null,null,""]
["0",null,null,null,"VK_NUMPAD0",null,null,null,null,"&H60",null,null,"60",null,96,null,"{96}",null,null,null,"KeyPush",null,null,"◎","0",5,null,69,null,"E",null,null,null,"E",29,null,null,null,null,""]
["1",null,null,null,"VK_NUMPAD1",null,null,null,null,"&H61",null,null,"61",null,97,null,"{97}",null,null,null,"KeyPush",null,null,"◎","1",7,null,70,null,"F",null,null,null,"F",51,null,null,null,null,""]
["2",null,null,null,"VK_NUMPAD2",null,null,null,null,"&H62",null,null,"62",null,98,null,"{98}",null,null,null,"KeyPush",null,null,"◎","2",9,null,71,null,"G",null,null,null,"G",53,null,null,null,null,""]
["3",null,null,null,"VK_NUMPAD3",null,null,null,null,"&H63",null,null,"63",null,99,null,"{99}",null,null,null,"KeyPush",null,null,"◎","3",11,null,72,null,"H",null,null,null,"H",55,null,null,null,null,""]
["4",null,null,null,"VK_NUMPAD4",null,null,null,null,"&H64",null,null,"64",null,100,null,"{100}",null,null,null,"KeyPush",null,null,"◎","4",13,null,73,null,"I",null,null,null,"I",39,null,null,null,null,""]
["5",null,null,null,"VK_NUMPAD5",null,null,null,null,"&H65",null,null,"65",null,101,null,"{101}",null,null,null,"KeyPush",null,null,"◎","5",15,null,74,null,"J",null,null,null,"J",57,null,null,null,null,""]
["6",null,null,null,"VK_NUMPAD6",null,null,null,null,"&H66",null,null,"66",null,102,null,"{102}",null,null,null,"KeyPush",null,null,"◎","6",17,null,75,null,"K",null,null,null,"K",59,null,null,null,null,""]
["7",null,null,null,"VK_NUMPAD7",null,null,null,null,"&H67",null,null,"67",null,103,null,"{103}",null,null,null,"KeyPush",null,null,"◎","7",19,null,76,null,"L",null,null,null,"L",61,null,null,null,null,""]
["8",null,null,null,"VK_NUMPAD8",null,null,null,null,"&H68",null,null,"68",null,104,null,"{104}",null,null,null,"KeyPush",null,null,"◎","8",21,null,77,null,"M",null,null,null,"M",75,null,null,null,null,""]
["9",null,null,null,"VK_NUMPAD9",null,null,null,null,"&H69",null,null,"69",null,105,null,"{105}",null,null,null,"KeyPush",null,null,"◎","9",23,null,78,null,"N",null,null,null,"N",73,null,null,null,null,""]
["*",null,null,null,"VK_MULTIPLY",null,null,null,null,"&H6A",null,null,"6A",null,106,null,"{106}",null,null,null,"KeyPush",null,null,"◎","*",29,null,79,null,"O",null,null,null,"O",41,null,null,null,null,""]
["+",null,null,null,"VK_ADD",null,null,null,null,"&H6B",null,null,"6B",null,107,null,"{107}",null,null,null,"KeyPush",null,null,"◎","+",33,null,80,null,"P",null,null,null,"P",43,null,null,null,null,""]
["Enter",null,null,null,"VK_SEPARATOR",null,null,null,null,"&H6C",null,null,"6C",null,108,null,"{ENTER}",null,null,null,"KeyPush",null,null,"◎","en",35,null,81,null,"Q",null,null,null,"Q",25,null,null,null,null,""]
["-",null,null,null,"VK_SUBTRACT",null,null,null,null,"&H6D",null,null,"6D",null,109,null,"{109}",null,null,null,"KeyPush",null,null,"◎","-",31,null,82,null,"R",null,null,null,"R",31,null,null,null,null,""]
[".",null,null,null,"VK_DECIMAL",null,null,null,null,"&H6E",null,null,"6E",null,110,null,"{110}",null,null,null,"KeyPush",null,null,"◎",".",25,null,83,null,"S",null,null,null,"S",47,null,null,null,null,""]
["/",null,null,null,"VK_DIVIDE",null,null,null,null,"&H6F",null,null,"6F",null,111,null,"{111}",null,null,null,"KeyPush",null,null,"◎","/",27,null,84,null,"T",null,null,null,"T",33,null,null,null,null,""]
["F1",null,null,null,"VK_F1",null,null,null,null,"&H70",null,null,"70",null,112,null,"{F1}",null,null,null,"KeyPush",null,null,null,null,null,null,85,null,"U",null,null,null,"U",37,null,null,null,null,""]
["F2",null,null,null,"VK_F2",null,null,null,null,"&H71",null,null,"71",null,113,null,"{F2}",null,null,null,"KeyPush",null,null,null,null,null,null,86,null,"V",null,null,null,"V",69,null,null,null,null,""]
["F3",null,null,null,"VK_F3",null,null,null,null,"&H72",null,null,"72",null,114,null,"{F3}",null,null,null,"KeyPush",null,null,null,null,null,null,87,null,"W",null,null,null,"W",27,null,null,null,null,""]
["F4",null,null,null,"VK_F4",null,null,null,null,"&H73",null,null,"73",null,115,null,"{F4}",null,null,null,"KeyPush",null,null,null,null,null,null,88,null,"X",null,null,null,"X",65,null,null,null,null,""]
["F5",null,null,null,"VK_F5",null,null,null,null,"&H74",null,null,"74",null,116,null,"{F5}",null,null,null,"KeyPush",null,null,null,null,null,null,89,null,"Y",null,null,null,"Y",35,null,null,null,null,""]
["F6",null,null,null,"VK_F6",null,null,null,null,"&H75",null,null,"75",null,117,null,"{F6}",null,null,null,"KeyPush",null,null,null,null,null,null,90,null,"Z",null,null,null,"Z",63,null,null,null,null,""]
["F7",null,null,null,"VK_F7",null,null,null,null,"&H76",null,null,"76",null,118,null,"{F7}",null,null,null,"KeyPush",null,null,null,null,null,null,91,null,"",null,null,null,"","",null,null,null,null,""]
["F8",null,null,null,"VK_F8",null,null,null,null,"&H77",null,null,"77",null,119,null,"{F8}",null,null,null,"KeyPush",null,null,null,null,null,null,92,null,"",null,null,null,"","",null,null,null,null,""]
["F9",null,null,null,"VK_F9",null,null,null,null,"&H78",null,null,"78",null,120,null,"{F9}",null,null,null,"KeyPush",null,null,null,null,null,null,93,null,"",null,null,null,"","",null,null,null,null,""]
["F10",null,null,null,"VK_F10",null,null,null,null,"&H79",null,null,"79",null,121,null,"{F10}",null,null,null,"KeyPush",null,null,null,null,null,null,94,null,"",null,null,null,"","",null,null,null,null,""]
["F11",null,null,null,"VK_F11",null,null,null,null,"&H7A",null,null,"7A",null,122,null,"{F11}",null,null,null,"KeyPush",null,null,null,null,null,null,95,null,"",null,null,null,"","",null,null,null,null,""]
["F12",null,null,null,"VK_F12",null,null,null,null,"&H7B",null,null,{"$f":"MID(J248,3,3)","v":"7B"},null,123,null,"{F12}",null,null,null,"KeyPush",null,null,null,null,null,null,96,null,"0",null,null,null,"0",5,null,null,null,null,""]
["F13",null,null,null,"VK_F13",null,null,null,null,"&H7C",null,null,"7C",null,124,null,"{F13}",null,null,null,"KeyPush",null,null,null,null,null,null,97,null,"1",null,null,null,"1",7,null,null,null,null,""]
["F14",null,null,null,"VK_F14",null,null,null,null,"&H7D",null,null,"7D",null,125,null,"{F14}",null,null,null,"KeyPush",null,null,null,null,null,null,98,null,"2",null,null,null,"2",9,null,null,null,null,""]
["F15",null,null,null,"VK_F15",null,null,null,null,"&H7E",null,null,"7E",null,126,null,"{F15}",null,null,null,"KeyPush",null,null,null,null,null,null,99,null,"3",null,null,null,"3",11,null,null,null,null,""]
["F16",null,null,null,"VK_F16",null,null,null,null,"&H7F",null,null,"7F",null,127,null,"",null,null,null,null,null,null,null,null,null,null,100,null,"4",null,null,null,"4",13,null,null,null,null,""]
["F17",null,null,null,"VK_F17",null,null,null,null,"&H80",null,null,"80",null,128,null,"",null,null,null,null,null,null,null,null,null,null,101,null,"5",null,null,null,"5",15,null,null,null,null,""]
["F18",null,null,null,"VK_F18",null,null,null,null,"&H81",null,null,"81",null,129,null,"",null,null,null,null,null,null,null,null,null,null,102,null,"6",null,null,null,"6",17,null,null,null,null,""]
["F19",null,null,null,"VK_F19",null,null,null,null,"&H82",null,null,"82",null,130,null,"",null,null,null,null,null,null,null,null,null,null,103,null,"7",null,null,null,"7",19,null,null,null,null,""]
["F20",null,null,null,"VK_F20",null,null,null,null,"&H83",null,null,"83",null,131,null,"",null,null,null,null,null,null,null,null,null,null,104,null,"8",null,null,null,"8",21,null,null,null,null,""]
["F21",null,null,null,"VK_F21",null,null,null,null,"&H84",null,null,"84",null,132,null,"",null,null,null,null,null,null,null,null,null,null,105,null,"9",null,null,null,"9",23,null,null,null,null,""]
["F22",null,null,null,"VK_F22",null,null,null,null,"&H85",null,null,"85",null,133,null,"",null,null,null,null,null,null,null,null,null,null,106,null,"*",null,null,null,"*",29,null,null,null,null,""]
["F23",null,null,null,"VK_F23",null,null,null,null,"&H86",null,null,"86",null,134,null,"",null,null,null,null,null,null,null,null,null,null,107,null,"+",null,null,null,"+",33,null,null,null,null,""]
["F24",null,null,null,"VK_F24",null,null,null,null,"&H87",null,null,"87",null,135,null,"",null,null,null,null,null,null,null,null,null,null,108,null,"Enter",null,null,null,"en",35,null,null,null,null,""]
["Num Lock",null,null,null,"VK_NUMLOCK",null,null,null,null,"&H90",null,null,"90",null,144,null,"{NUMLOCK}",null,null,null,"KeyPush",null,null,null,null,null,null,109,null,"-",null,null,null,"-",31,null,null,null,null,""]
["-",null,null,null,"VK_HIFN",null,null,null,null,"&HBD",null,null,"BD",null,189,null,"-",null,null,null,"KeyPush",null,null,"○","-",79,null,110,null,".",null,null,null,".",25,null,null,null,null,""]
["^",null,null,null,"VK_YANE",null,null,null,null,"&HDE",null,null,"DE",null,222,null,"{^}",null,null,null,"KeyPush",null,null,"○","^",81,null,111,null,"/",null,null,null,"/",27,null,null,null,null,""]
["\\",null,null,null,"VK_EN",null,null,null,null,"&HDC",null,null,"DC",null,220,null,"\\",null,null,null,"KeyPush",null,null,"○","\\",83,null,112,null,"F1",null,null,null,"","",null,null,null,null,""]
["@",null,null,null,"VK_ATTO",null,null,null,null,"&HC0",null,null,"C0",null,192,null,"@",null,null,null,"KeyPush",null,null,"○","@",85,null,113,null,"F2",null,null,null,"","",null,null,null,null,""]
["[",null,null,null,"VK_HKAKO",null,null,null,null,"&HDB",null,null,"DB",null,219,null,"{[}",null,null,null,"KeyPush",null,null,"○","[",87,null,114,null,"F3",null,null,null,"","",null,null,null,null,""]
[";",null,null,null,"VK_SEMI",null,null,null,null,"&HBB",null,null,"BB",null,187,null,";",null,null,null,"KeyPush",null,null,"○",";",89,null,115,null,"F4",null,null,null,"","",null,null,null,null,""]
[":",null,null,null,"VK_CORN",null,null,null,null,"&HBA",null,null,"BA",null,186,null,":",null,null,null,"KeyPush",null,null,"○",":",91,null,116,null,"F5",null,null,null,"","",null,null,null,null,""]
["]",null,null,null,"VK_MKAKO",null,null,null,null,"&HDD",null,null,"DD",null,221,null,"{]}",null,null,null,"KeyPush",null,null,"○","]",93,null,117,null,"F6",null,null,null,"","",null,null,null,null,""]
[",",null,null,null,"VK_KNM",null,null,null,null,"&HBC",null,null,"BC",null,188,null,",",null,null,null,"KeyPush",null,null,"○",",",95,null,118,null,"F7",null,null,null,"","",null,null,null,null,""]
[".",null,null,null,"VK_TEN",null,null,null,null,"&HBE",null,null,"BE",null,190,null,".",null,null,null,"KeyPush",null,null,"○",".",97,null,119,null,"F8",null,null,null,"","",null,null,null,null,""]
["/",null,null,null,"VK_SRA",null,null,null,null,"&HBF",null,null,"BF",null,191,null,"/",null,null,null,"KeyPush",null,null,"○","/",99,null,120,null,"F9",null,null,null,"","",null,null,null,null,""]
["＼",null,null,null,"VK_GSRA",null,null,null,null,"&HE2",null,null,"E2",null,226,null,"",null,null,null,"KeyPush",null,null,"○","＼",101,null,121,null,"F10",null,null,null,"","",null,null,null,null,""]
[null,null,null,null,null,null,null,null,null,null,null,null,null,null,null,null,"~",null,null,null,"KeyPush",null,null,null,null,null,null,122,null,"F11",null,null,null,"","",null,null,null,null,""]
[null,null,null,null,null,null,null,null,null,null,null,null,null,null,null,null,"{SCROLLLOCK}",null,null,null,"KeyPush",null,null,null,null,null,null,123,null,"F12",null,null,null,"","",null,null,null,null,""]
[null,null,null,null,null,null,null,null,null,null,null,null,null,null,null,null,null,null,null,null,null,null,null,null,null,null,null,124,null,"F13",null,null,null,"","",null,null,null,null,""]
[null,null,null,null,null,null,null,null,null,null,null,null,null,null,null,null,null,null,null,null,null,null,null,null,null,null,null,125,null,"F14",null,null,null,"","",null,null,null,null,""]
[null,null,null,null,null,null,null,null,null,null,null,null,null,null,null,null,null,null,null,null,null,null,null,null,null,null,null,126,null,"F15",null,null,null,"","",null,null,null,null,""]
[null,null,null,null,null,null,null,null,null,null,null,null,null,null,null,null,null,null,null,null,null,null,null,null,null,null,null,127,null,"F16",null,null,null,"","",null,null,null,null,""]
[null,null,null,null,null,null,null,null,null,null,null,null,null,null,null,null,null,null,null,null,null,null,null,null,null,null,null,128,null,{"$f":"IFERROR(INDEX(A:A,MATCH(AB280,O:O,0)),\"\")","v":"F17"},null,null,null,{"$f":"IFERROR(INDEX(Y:Y,MATCH(AB280,O:O,0))&\"\",\"\")","v":""},{"$f":"IF(AH280=\"\",\"\",IFERROR(INDEX(Z:Z,MATCH(AB280,O:O,0)),\"\"))","v":""},null,null,null,null,""]
[null,null,null,null,null,null,null,null,null,null,null,null,null,null,null,null,null,null,null,null,null,null,null,null,null,null,null,129,null,"F18",null,null,null,"","",null,null,null,null,{"$f":"IF(OR(AK281=128,AK281=129),1,\"\")","v":""}]
[null,null,null,null,null,null,null,null,null,null,null,null,null,null,null,null,null,null,null,null,null,null,null,null,null,null,null,{"$f":"AB281+1","v":130},null,"F19",null,null,null,"","",null,null,null,null,""]
[null,null,null,null,null,null,null,null,null,null,null,null,null,null,null,null,null,null,null,null,null,null,null,null,null,null,null,131,null,"F20",null,null,null,"","",null,null,null,null,""]
[null,null,null,null,null,null,null,null,null,null,null,null,null,null,null,null,null,null,null,null,null,null,null,null,null,null,null,132,null,"F21",null,null,null,"","",null,null,null,null,""]
[null,null,null,null,null,null,null,null,null,null,null,null,null,null,null,null,null,null,null,null,null,null,null,null,null,null,null,133,null,"F22",null,null,null,"","",null,null,null,null,""]
[null,null,null,null,null,null,null,null,null,null,null,null,null,null,null,null,null,null,null,null,null,null,null,null,null,null,null,134,null,"F23",null,null,null,"","",null,null,null,null,""]
[null,null,null,null,null,null,null,null,null,null,null,null,null,null,null,null,null,null,null,null,null,null,null,null,null,null,null,135,null,"F24",null,null,null,"","",null,null,null,null,""]
[null,null,null,null,null,null,null,null,null,null,null,null,null,null,null,null,null,null,null,null,null,null,null,null,null,null,null,136,null,"",null,null,null,"","",null,null,null,null,""]
[null,null,null,null,null,null,null,null,null,null,null,null,null,null,null,null,null,null,null,null,null,null,null,null,null,null,null,137,null,"",null,null,null,"","",null,null,null,null,""]
[null,null,null,null,null,null,null,null,null,null,null,null,null,null,null,null,null,null,null,null,null,null,null,null,null,null,null,138,null,"",null,null,null,"","",null,null,null,null,""]
[null,null,null,null,null,null,null,null,null,null,null,null,null,null,null,null,null,null,null,null,null,null,null,null,null,null,null,139,null,"",null,null,null,"","",null,null,null,null,""]
[null,null,null,null,null,null,null,null,null,null,null,null,null,null,null,null,null,null,null,null,null,null,null,null,null,null,null,140,null,"",null,null,null,"","",null,null,null,null,""]
[null,null,null,null,null,null,null,null,null,null,null,null,null,null,null,null,null,null,null,null,null,null,null,null,null,null,null,141,null,"",null,null,null,"","",null,null,null,null,""]
[null,null,null,null,null,null,null,null,null,null,null,null,null,null,null,null,null,null,null,null,null,null,null,null,null,null,null,142,null,"",null,null,null,"","",null,null,null,null,""]
[null,null,null,null,null,null,null,null,null,null,null,null,null,null,null,null,null,null,null,null,null,null,null,null,null,null,null,143,null,"",null,null,null,"","",null,null,null,null,""]
[null,null,null,null,null,null,null,null,null,null,null,null,null,null,null,null,null,null,null,null,null,null,null,null,null,null,null,144,null,"Num Lock",null,null,null,"","",null,null,null,null,""]
[null,null,null,null,null,null,null,null,null,null,null,null,null,null,null,null,null,null,null,null,null,null,null,null,null,null,null,145,null,"",null,null,null,"","",null,null,null,null,""]
[null,null,null,null,null,null,null,null,null,null,null,null,null,null,null,null,null,null,null,null,null,null,null,null,null,null,null,146,null,"",null,null,null,"","",null,null,null,null,""]
[null,null,null,null,null,null,null,null,null,null,null,null,null,null,null,null,null,null,null,null,null,null,null,null,null,null,null,147,null,"",null,null,null,"","",null,null,null,null,""]
[null,null,null,null,null,null,null,null,null,null,null,null,null,null,null,null,null,null,null,null,null,null,null,null,null,null,null,148,null,"",null,null,null,"","",null,null,null,null,""]
[null,null,null,null,null,null,null,null,null,null,null,null,null,null,null,null,null,null,null,null,null,null,null,null,null,null,null,149,null,"",null,null,null,"","",null,null,null,null,""]
[null,null,null,null,null,null,null,null,null,null,null,null,null,null,null,null,null,null,null,null,null,null,null,null,null,null,null,150,null,"",null,null,null,"","",null,null,null,null,""]
[null,null,null,null,null,null,null,null,null,null,null,null,null,null,null,null,null,null,null,null,null,null,null,null,null,null,null,151,null,"",null,null,null,"","",null,null,null,null,""]
[null,null,null,null,null,null,null,null,null,null,null,null,null,null,null,null,null,null,null,null,null,null,null,null,null,null,null,152,null,"",null,null,null,"","",null,null,null,null,""]
[null,null,null,null,null,null,null,null,null,null,null,null,null,null,null,null,null,null,null,null,null,null,null,null,null,null,null,153,null,"",null,null,null,"","",null,null,null,null,""]
[null,null,null,null,null,null,null,null,null,null,null,null,null,null,null,null,null,null,null,null,null,null,null,null,null,null,null,154,null,"",null,null,null,"","",null,null,null,null,""]
[null,null,null,null,null,null,null,null,null,null,null,null,null,null,null,null,null,null,null,null,null,null,null,null,null,null,null,155,null,"",null,null,null,"","",null,null,null,null,""]
[null,null,null,null,null,null,null,null,null,null,null,null,null,null,null,null,null,null,null,null,null,null,null,null,null,null,null,156,null,"",null,null,null,"","",null,null,null,null,""]
[null,null,null,null,null,null,null,null,null,null,null,null,null,null,null,null,null,null,null,null,null,null,null,null,null,null,null,157,null,"",null,null,null,"","",null,null,null,null,""]
[null,null,null,null,null,null,null,null,null,null,null,null,null,null,null,null,null,null,null,null,null,null,null,null,null,null,null,158,null,"",null,null,null,"","",null,null,null,null,""]
[null,null,null,null,null,null,null,null,null,null,null,null,null,null,null,null,null,null,null,null,null,null,null,null,null,null,null,159,null,"",null,null,null,"","",null,null,null,null,""]
[null,null,null,null,null,null,null,null,null,null,null,null,null,null,null,null,null,null,null,null,null,null,null,null,null,null,null,160,null,"",null,null,null,"","",null,null,null,null,""]
[null,null,null,null,null,null,null,null,null,null,null,null,null,null,null,null,null,null,null,null,null,null,null,null,null,null,null,161,null,"RightShift",null,null,null,"","",null,null,null,null,""]
[null,null,null,null,null,null,null,null,null,null,null,null,null,null,null,null,null,null,null,null,null,null,null,null,null,null,null,162,null,"",null,null,null,"","",null,null,null,null,""]
[null,null,null,null,null,null,null,null,null,null,null,null,null,null,null,null,null,null,null,null,null,null,null,null,null,null,null,163,null,"RightControl",null,null,null,"","",null,null,null,null,""]
[null,null,null,null,null,null,null,null,null,null,null,null,null,null,null,null,null,null,null,null,null,null,null,null,null,null,null,164,null,"",null,null,null,"","",null,null,null,null,""]
[null,null,null,null,null,null,null,null,null,null,null,null,null,null,null,null,null,null,null,null,null,null,null,null,null,null,null,165,null,"RightMenu",null,null,null,"","",null,null,null,null,""]
[null,null,null,null,null,null,null,null,null,null,null,null,null,null,null,null,null,null,null,null,null,null,null,null,null,null,null,166,null,"",null,null,null,"","",null,null,null,null,""]
[null,null,null,null,null,null,null,null,null,null,null,null,null,null,null,null,null,null,null,null,null,null,null,null,null,null,null,167,null,"",null,null,null,"","",null,null,null,null,""]
[null,null,null,null,null,null,null,null,null,null,null,null,null,null,null,null,null,null,null,null,null,null,null,null,null,null,null,168,null,"",null,null,null,"","",null,null,null,null,""]
[null,null,null,null,null,null,null,null,null,null,null,null,null,null,null,null,null,null,null,null,null,null,null,null,null,null,null,169,null,"",null,null,null,"","",null,null,null,null,""]
[null,null,null,null,null,null,null,null,null,null,null,null,null,null,null,null,null,null,null,null,null,null,null,null,null,null,null,170,null,"",null,null,null,"","",null,null,null,null,""]
[null,null,null,null,null,null,null,null,null,null,null,null,null,null,null,null,null,null,null,null,null,null,null,null,null,null,null,171,null,"",null,null,null,"","",null,null,null,null,""]
[null,null,null,null,null,null,null,null,null,null,null,null,null,null,null,null,null,null,null,null,null,null,null,null,null,null,null,172,null,"",null,null,null,"","",null,null,null,null,""]
[null,null,null,null,null,null,null,null,null,null,null,null,null,null,null,null,null,null,null,null,null,null,null,null,null,null,null,173,null,"",null,null,null,"","",null,null,null,null,""]
[null,null,null,null,null,null,null,null,null,null,null,null,null,null,null,null,null,null,null,null,null,null,null,null,null,null,null,174,null,"",null,null,null,"","",null,null,null,null,""]
[null,null,null,null,null,null,null,null,null,null,null,null,null,null,null,null,null,null,null,null,null,null,null,null,null,null,null,175,null,"",null,null,null,"","",null,null,null,null,""]
[null,null,null,null,null,null,null,null,null,null,null,null,null,null,null,null,null,null,null,null,null,null,null,null,null,null,null,176,null,"",null,null,null,"","",null,null,null,null,""]
[null,null,null,null,null,null,null,null,null,null,null,null,null,null,null,null,null,null,null,null,null,null,null,null,null,null,null,177,null,"",null,null,null,"","",null,null,null,null,""]
[null,null,null,null,null,null,null,null,null,null,null,null,null,null,null,null,null,null,null,null,null,null,null,null,null,null,null,178,null,"",null,null,null,"","",null,null,null,null,""]
[null,null,null,null,null,null,null,null,null,null,null,null,null,null,null,null,null,null,null,null,null,null,null,null,null,null,null,179,null,"",null,null,null,"","",null,null,null,null,""]
[null,null,null,null,null,null,null,null,null,null,null,null,null,null,null,null,null,null,null,null,null,null,null,null,null,null,null,180,null,"",null,null,null,"","",null,null,null,null,""]
[null,null,null,null,null,null,null,null,null,null,null,null,null,null,null,null,null,null,null,null,null,null,null,null,null,null,null,181,null,"",null,null,null,"","",null,null,null,null,""]
[null,null,null,null,null,null,null,null,null,null,null,null,null,null,null,null,null,null,null,null,null,null,null,null,null,null,null,182,null,"",null,null,null,"","",null,null,null,null,""]
[null,null,null,null,null,null,null,null,null,null,null,null,null,null,null,null,null,null,null,null,null,null,null,null,null,null,null,183,null,"",null,null,null,"","",null,null,null,null,""]
[null,null,null,null,null,null,null,null,null,null,null,null,null,null,null,null,null,null,null,null,null,null,null,null,null,null,null,184,null,"",null,null,null,"","",null,null,null,null,""]
[null,null,null,null,null,null,null,null,null,null,null,null,null,null,null,null,null,null,null,null,null,null,null,null,null,null,null,185,null,"",null,null,null,"","",null,null,null,null,""]
[null,null,null,null,null,null,null,null,null,null,null,null,null,null,null,null,null,null,null,null,null,null,null,null,null,null,null,186,null,":",null,null,null,":",91,null,null,null,null,""]
[null,null,null,null,null,null,null,null,null,null,null,null,null,null,null,null,null,null,null,null,null,null,null,null,null,null,null,187,null,";",null,null,null,";",89,null,null,null,null,""]
[null,null,null,null,null,null,null,null,null,null,null,null,null,null,null,null,null,null,null,null,null,null,null,null,null,null,null,188,null,",",null,null,null,",",95,null,null,null,null,""]
[null,null,null,null,null,null,null,null,null,null,null,null,null,null,null,null,null,null,null,null,null,null,null,null,null,null,null,189,null,"-",null,null,null,"-",79,null,null,null,null,""]
[null,null,null,null,null,null,null,null,null,null,null,null,null,null,null,null,null,null,null,null,null,null,null,null,null,null,null,190,null,".",null,null,null,".",97,null,null,null,null,""]
[null,null,null,null,null,null,null,null,null,null,null,null,null,null,null,null,null,null,null,null,null,null,null,null,null,null,null,191,null,"/",null,null,null,"/",99,null,null,null,null,""]
[null,null,null,null,null,null,null,null,null,null,null,null,null,null,null,null,null,null,null,null,null,null,null,null,null,null,null,192,null,{"$f":"IFERROR(INDEX(A:A,MATCH(AB344,O:O,0)),\"\")","v":"@"},null,null,null,{"$f":"IFERROR(INDEX(Y:Y,MATCH(AB344,O:O,0))&\"\",\"\")","v":"@"},{"$f":"IF(AH344=\"\",\"\",IFERROR(INDEX(Z:Z,MATCH(AB344,O:O,0)),\"\"))","v":85},null,null,null,null,""]
[null,null,null,null,null,null,null,null,null,null,null,null,null,null,null,null,null,null,null,null,null,null,null,null,null,null,null,193,null,"",null,null,null,"","",null,null,null,null,{"$f":"IF(OR(AK345=128,AK345=129),1,\"\")","v":""}]
[null,null,null,null,null,null,null,null,null,null,null,null,null,null,null,null,null,null,null,null,null,null,null,null,null,null,null,{"$f":"AB345+1","v":194},null,"",null,null,null,"","",null,null,null,null,""]
[null,null,null,null,null,null,null,null,null,null,null,null,null,null,null,null,null,null,null,null,null,null,null,null,null,null,null,195,null,"",null,null,null,"","",null,null,null,null,""]
[null,null,null,null,null,null,null,null,null,null,null,null,null,null,null,null,null,null,null,null,null,null,null,null,null,null,null,196,null,"",null,null,null,"","",null,null,null,null,""]
[null,null,null,null,null,null,null,null,null,null,null,null,null,null,null,null,null,null,null,null,null,null,null,null,null,null,null,197,null,"",null,null,null,"","",null,null,null,null,""]
[null,null,null,null,null,null,null,null,null,null,null,null,null,null,null,null,null,null,null,null,null,null,null,null,null,null,null,198,null,"",null,null,null,"","",null,null,null,null,""]
[null,null,null,null,null,null,null,null,null,null,null,null,null,null,null,null,null,null,null,null,null,null,null,null,null,null,null,199,null,"",null,null,null,"","",null,null,null,null,""]
[null,null,null,null,null,null,null,null,null,null,null,null,null,null,null,null,null,null,null,null,null,null,null,null,null,null,null,200,null,"",null,null,null,"","",null,null,null,null,""]
[null,null,null,null,null,null,null,null,null,null,null,null,null,null,null,null,null,null,null,null,null,null,null,null,null,null,null,201,null,"",null,null,null,"","",null,null,null,null,""]
[null,null,null,null,null,null,null,null,null,null,null,null,null,null,null,null,null,null,null,null,null,null,null,null,null,null,null,202,null,"",null,null,null,"","",null,null,null,null,""]
[null,null,null,null,null,null,null,null,null,null,null,null,null,null,null,null,null,null,null,null,null,null,null,null,null,null,null,203,null,"",null,null,null,"","",null,null,null,null,""]
[null,null,null,null,null,null,null,null,null,null,null,null,null,null,null,null,null,null,null,null,null,null,null,null,null,null,null,204,null,"",null,null,null,"","",null,null,null,null,""]
[null,null,null,null,null,null,null,null,null,null,null,null,null,null,null,null,null,null,null,null,null,null,null,null,null,null,null,205,null,"",null,null,null,"","",null,null,null,null,""]
[null,null,null,null,null,null,null,null,null,null,null,null,null,null,null,null,null,null,null,null,null,null,null,null,null,null,null,206,null,"",null,null,null,"","",null,null,null,null,""]
[null,null,null,null,null,null,null,null,null,null,null,null,null,null,null,null,null,null,null,null,null,null,null,null,null,null,null,207,null,"",null,null,null,"","",null,null,null,null,""]
[null,null,null,null,null,null,null,null,null,null,null,null,null,null,null,null,null,null,null,null,null,null,null,null,null,null,null,208,null,"",null,null,null,"","",null,null,null,null,""]
[null,null,null,null,null,null,null,null,null,null,null,null,null,null,null,null,null,null,null,null,null,null,null,null,null,null,null,209,null,"",null,null,null,"","",null,null,null,null,""]
[null,null,null,null,null,null,null,null,null,null,null,null,null,null,null,null,null,null,null,null,null,null,null,null,null,null,null,210,null,"",null,null,null,"","",null,null,null,null,""]
[null,null,null,null,null,null,null,null,null,null,null,null,null,null,null,null,null,null,null,null,null,null,null,null,null,null,null,211,null,"",null,null,null,"","",null,null,null,null,""]
[null,null,null,null,null,null,null,null,null,null,null,null,null,null,null,null,null,null,null,null,null,null,null,null,null,null,null,212,null,"",null,null,null,"","",null,null,null,null,""]
[null,null,null,null,null,null,null,null,null,null,null,null,null,null,null,null,null,null,null,null,null,null,null,null,null,null,null,213,null,"",null,null,null,"","",null,null,null,null,""]
[null,null,null,null,null,null,null,null,null,null,null,null,null,null,null,null,null,null,null,null,null,null,null,null,null,null,null,214,null,"",null,null,null,"","",null,null,null,null,""]
[null,null,null,null,null,null,null,null,null,null,null,null,null,null,null,null,null,null,null,null,null,null,null,null,null,null,null,215,null,"",null,null,null,"","",null,null,null,null,""]
[null,null,null,null,null,null,null,null,null,null,null,null,null,null,null,null,null,null,null,null,null,null,null,null,null,null,null,216,null,"",null,null,null,"","",null,null,null,null,""]
[null,null,null,null,null,null,null,null,null,null,null,null,null,null,null,null,null,null,null,null,null,null,null,null,null,null,null,217,null,"",null,null,null,"","",null,null,null,null,""]
[null,null,null,null,null,null,null,null,null,null,null,null,null,null,null,null,null,null,null,null,null,null,null,null,null,null,null,218,null,"",null,null,null,"","",null,null,null,null,""]
[null,null,null,null,null,null,null,null,null,null,null,null,null,null,null,null,null,null,null,null,null,null,null,null,null,null,null,219,null,"[",null,null,null,"[",87,null,null,null,null,""]
[null,null,null,null,null,null,null,null,null,null,null,null,null,null,null,null,null,null,null,null,null,null,null,null,null,null,null,220,null,"\\",null,null,null,"\\",83,null,null,null,null,""]
[null,null,null,null,null,null,null,null,null,null,null,null,null,null,null,null,null,null,null,null,null,null,null,null,null,null,null,221,null,"]",null,null,null,"]",93,null,null,null,null,""]
[null,null,null,null,null,null,null,null,null,null,null,null,null,null,null,null,null,null,null,null,null,null,null,null,null,null,null,222,null,"^",null,null,null,"^",81,null,null,null,null,""]
[null,null,null,null,null,null,null,null,null,null,null,null,null,null,null,null,null,null,null,null,null,null,null,null,null,null,null,223,null,"",null,null,null,"","",null,null,null,null,""]
[null,null,null,null,null,null,null,null,null,null,null,null,null,null,null,null,null,null,null,null,null,null,null,null,null,null,null,224,null,"",null,null,null,"","",null,null,null,null,""]
[null,null,null,null,null,null,null,null,null,null,null,null,null,null,null,null,null,null,null,null,null,null,null,null,null,null,null,225,null,"",null,null,null,"","",null,null,null,null,""]
[null,null,null,null,null,null,null,null,null,null,null,null,null,null,null,null,null,null,null,null,null,null,null,null,null,null,null,226,null,"＼",null,null,null,"＼",101,null,null,null,null,""]
[null,null,null,null,null,null,null,null,null,null,null,null,null,null,null,null,null,null,null,null,null,null,null,null,null,null,null,227,null,"",null,null,null,"",""]
[null,null,null,null,null,null,null,null,null,null,null,null,null,null,null,null,null,null,null,null,null,null,null,null,null,null,null,228,null,"",null,null,null,"",""]
[null,null,null,null,null,null,null,null,null,null,null,null,null,null,null,null,null,null,null,null,null,null,null,null,null,null,null,229,null,"",null,null,null,"",""]
[null,null,null,null,null,null,null,null,null,null,null,null,null,null,null,null,null,null,null,null,null,null,null,null,null,null,null,230,null,"",null,null,null,"",""]
[null,null,null,null,null,null,null,null,null,null,null,null,null,null,null,null,null,null,null,null,null,null,null,null,null,null,null,231,null,"",null,null,null,"",""]
[null,null,null,null,null,null,null,null,null,null,null,null,null,null,null,null,null,null,null,null,null,null,null,null,null,null,null,232,null,"",null,null,null,"",""]
[null,null,null,null,null,null,null,null,null,null,null,null,null,null,null,null,null,null,null,null,null,null,null,null,null,null,null,233,null,"",null,null,null,"",""]
[null,null,null,null,null,null,null,null,null,null,null,null,null,null,null,null,null,null,null,null,null,null,null,null,null,null,null,234,null,"",null,null,null,"",""]
[null,null,null,null,null,null,null,null,null,null,null,null,null,null,null,null,null,null,null,null,null,null,null,null,null,null,null,235,null,"",null,null,null,"",""]
[null,null,null,null,null,null,null,null,null,null,null,null,null,null,null,null,null,null,null,null,null,null,null,null,null,null,null,236,null,"",null,null,null,"",""]
[null,null,null,null,null,null,null,null,null,null,null,null,null,null,null,null,null,null,null,null,null,null,null,null,null,null,null,237,null,"",null,null,null,"",""]
[null,null,null,null,null,null,null,null,null,null,null,null,null,null,null,null,null,null,null,null,null,null,null,null,null,null,null,238,null,"",null,null,null,"",""]
[null,null,null,null,null,null,null,null,null,null,null,null,null,null,null,null,null,null,null,null,null,null,null,null,null,null,null,239,null,"",null,null,null,"",""]
[null,null,null,null,null,null,null,null,null,null,null,null,null,null,null,null,null,null,null,null,null,null,null,null,null,null,null,240,null,"",null,null,null,"",""]
[null,null,null,null,null,null,null,null,null,null,null,null,null,null,null,null,null,null,null,null,null,null,null,null,null,null,null,241,null,"",null,null,null,"",""]
[null,null,null,null,null,null,null,null,null,null,null,null,null,null,null,null,null,null,null,null,null,null,null,null,null,null,null,242,null,"",null,null,null,"",""]
[null,null,null,null,null,null,null,null,null,null,null,null,null,null,null,null,null,null,null,null,null,null,null,null,null,null,null,243,null,"",null,null,null,"",""]
[null,null,null,null,null,null,null,null,null,null,null,null,null,null,null,null,null,null,null,null,null,null,null,null,null,null,null,244,null,"",null,null,null,"",""]
[null,null,null,null,null,null,null,null,null,null,null,null,null,null,null,null,null,null,null,null,null,null,null,null,null,null,null,245,null,"",null,null,null,"",""]
[null,null,null,null,null,null,null,null,null,null,null,null,null,null,null,null,null,null,null,null,null,null,null,null,null,null,null,246,null,"",null,null,null,"",""]
[null,null,null,null,null,null,null,null,null,null,null,null,null,null,null,null,null,null,null,null,null,null,null,null,null,null,null,247,null,"",null,null,null,"",""]
[null,null,null,null,null,null,null,null,null,null,null,null,null,null,null,null,null,null,null,null,null,null,null,null,null,null,null,248,null,"",null,null,null,"",""]
[null,null,null,null,null,null,null,null,null,null,null,null,null,null,null,null,null,null,null,null,null,null,null,null,null,null,null,249,null,"",null,null,null,"",""]
[null,null,null,null,null,null,null,null,null,null,null,null,null,null,null,null,null,null,null,null,null,null,null,null,null,null,null,250,null,"",null,null,null,"",""]
[null,null,null,null,null,null,null,null,null,null,null,null,null,null,null,null,null,null,null,null,null,null,null,null,null,null,null,251,null,"",null,null,null,"",""]
[null,null,null,null,null,null,null,null,null,null,null,null,null,null,null,null,null,null,null,null,null,null,null,null,null,null,null,252,null,"",null,null,null,"",""]
[null,null,null,null,null,null,null,null,null,null,null,null,null,null,null,null,null,null,null,null,null,null,null,null,null,null,null,253,null,"",null,null,null,"",""]
[null,null,null,null,null,null,null,null,null,null,null,null,null,null,null,null,null,null,null,null,null,null,null,null,null,null,null,254,null,"",null,null,null,"",""]
[null,null,null,null,null,null,null,null,null,null,null,null,null,null,null,null,null,null,null,null,null,null,null,null,null,null,null,255,null,"",null,null,null,"",""]

{"sheet":"操作テスト","index":1,"n_rows":123,"n_cols":120,"rows_kept":123,"cut":false,"hidden":false,"merged":[[11,85,12,92],[102,34,103,35],[104,34,105,35],[98,34,99,35],[40,95,41,99],[89,66,90,67],[89,68,90,69],[89,70,90,71],[93,70,94,71],[91,68,92,69],[93,58,94,59],[93,60,94,61],[93,62,94,63],[93,64,94,65],[93,66,94,67],[93,68,94,69],[93,38,94,39],[93,40,94,41],[93,42,94,43],[93,44,94,45],[87,36,88,37],[87,38,88,39],[87,40,88,41],[40,35,41,39],[93,72,94,73],[93,74,94,75],[91,70,92,71],[91,66,92,67],[91,74,92,75],[89,72,90,73],[89,74,90,75],[89,52,90,53],[89,54,90,55],[89,56,90,57],[89,58,90,59],[89,60,90,61],[91,72,92,73],[89,62,90,63],[89,64,90,65],[91,58,92,59],[93,52,94,53],[93,54,94,55],[91,60,92,61],[91,62,92,63],[91,64,92,65],[93,56,94,57],[91,52,92,53],[91,54,92,55],[91,56,92,57],[31,101,32,105],[31,107,32,111],[40,107,41,111],[43,95,44,99],[43,101,44,105],[43,107,44,111],[45,95,46,99],[45,101,46,105],[45,107,46,111],[33,95,34,99],[33,101,34,105],[33,107,34,111],[36,95,37,99],[36,101,37,105],[36,107,37,111],[40,101,41,105],[89,76,90,77],[87,76,88,77],[36,77,37,78],[36,59,37,60],[38,77,39,78],[38,80,39,81],[47,95,48,99],[15,107,18,111],[15,113,18,117],[19,101,20,105],[19,107,20,111],[19,113,20,117],[22,95,23,99],[22,101,23,105],[22,107,23,111],[19,95,20,99],[15,95,18,99],[15,101,18,105],[22,113,32,117],[24,95,25,99],[24,101,25,105],[24,107,25,111],[36,112,37,112],[38,95,39,99],[38,101,39,105],[38,107,39,111],[26,95,27,99],[26,101,27,105],[26,107,27,111],[29,95,30,99],[29,101,30,105],[29,107,30,111],[31,95,32,99],[47,101,48,105],[93,104,94,105],[87,100,88,101],[87,102,88,103],[87,104,88,105],[53,77,55,99],[89,100,90,101],[91,100,92,101],[89,102,90,103],[89,104,90,105],[91,102,92,103],[91,104,92,105],[91,82,92,83],[91,84,92,85],[93,100,94,101],[93,102,94,103],[91,98,92,99],[91,76,92,77],[93,76,94,77],[93,98,94,99],[89,86,90,87],[57,101,58,107],[47,107,48,111],[87,94,88,95],[89,42,90,43],[89,44,90,45],[87,22,88,23],[87,24,88,25],[47,3,48,8],[43,11,46,15],[47,11,48,15],[43,23,46,27],[47,23,48,27],[43,17,46,21],[47,17,48,21],[87,10,88,11],[51,3,52,19],[89,36,90,37],[89,38,90,39],[43,3,46,8],[43,29,46,34],[47,29,48,34],[43,36,46,50],[47,36,48,43],[47,44,48,50],[89,4,90,5],[89,6,90,7],[61,4,62,11],[93,2,94,3],[95,2,96,3],[93,10,94,11],[93,12,94,13],[87,12,88,13],[89,12,90,13],[89,14,90,15],[89,16,90,17],[89,40,90,41],[87,32,88,33],[87,34,88,35],[87,16,88,17],[87,30,88,31],[87,18,88,19],[87,20,88,21],[93,36,94,37],[91,38,92,39],[91,40,92,41],[91,4,92,5],[91,6,92,7],[91,8,92,9],[93,4,94,5],[93,6,94,7],[93,8,94,9],[40,29,41,33],[89,46,90,47],[89,48,90,49],[89,50,90,51],[29,44,31,46],[89,30,90,31],[89,32,90,33],[89,34,90,35],[29,32,31,34],[29,38,31,40],[87,44,88,45],[87,46,88,47],[87,48,88,49],[87,50,88,51],[33,32,34,36],[33,38,34,42],[38,38,39,39],[36,44,37,45],[38,44,39,45],[36,50,37,51],[36,38,37,39],[36,41,38,43],[40,41,41,45],[40,47,41,51],[15,87,16,91],[17,87,18,91],[29,77,30,78],[31,74,32,75],[31,77,32,78],[29,80,30,81],[29,83,30,84],[31,80,32,81],[31,83,32,84],[15,81,16,82],[15,84,16,85],[17,81,18,82],[17,84,18,85],[22,78,23,79],[22,81,23,82],[19,87,20,91],[22,84,27,91],[24,78,25,79],[24,81,25,82],[22,75,23,76],[28,86,32,91],[33,74,34,78],[26,78,27,82],[29,74,30,75],[33,68,34,72],[24,75,25,76],[31,47,32,48],[33,80,34,84],[24,72,25,73],[29,71,30,72],[31,68,32,69],[31,71,32,72],[22,66,24,68],[22,69,23,70],[22,72,23,73],[29,65,30,66],[22,63,23,64],[31,65,32,66],[29,68,30,69],[29,47,30,48],[24,63,25,64],[26,48,27,52],[31,59,32,60],[26,60,27,64],[36,80,37,81],[15,75,16,76],[38,68,39,69],[36,71,37,72],[36,65,37,66],[36,68,37,69],[36,53,38,55],[36,74,37,75],[36,62,37,63],[29,53,30,54],[31,53,32,54],[29,59,30,60],[38,71,39,72],[38,74,39,75],[15,78,16,79],[17,75,18,76],[17,78,18,79],[22,60,24,62],[15,60,16,61],[17,57,18,58],[17,60,18,61],[15,63,16,64],[17,72,18,73],[29,62,31,64],[15,57,16,58],[29,56,31,58],[17,33,18,34],[17,36,18,37],[15,39,16,40],[15,42,16,43],[17,39,18,40],[17,42,18,43],[15,51,16,52],[15,54,16,55],[17,51,18,52],[17,54,18,55],[26,30,27,34],[24,45,25,46],[22,51,23,52],[24,51,25,52],[22,57,23,58],[24,57,25,58],[29,50,31,52],[22,48,24,50],[22,54,24,56],[0,44,2,72],[0,102,2,118],[0,3,2,25],[5,3,7,6],[5,7,7,10],[5,11,7,14],[5,15,7,18],[5,19,7,22],[5,23,7,26],[5,27,7,30],[5,31,7,34],[5,35,7,38],[5,39,7,42],[5,43,7,46],[5,47,7,50],[5,51,7,54],[5,55,7,58],[5,59,7,62],[5,63,7,66],[5,67,7,70],[5,71,7,74],[5,75,7,78],[5,79,7,82],[5,107,6,112],[87,72,88,73],[87,74,88,75],[87,54,88,55],[87,56,88,57],[87,58,88,59],[87,60,88,61],[87,62,88,63],[87,64,88,65],[87,42,88,43],[87,52,88,53],[87,66,88,67],[87,68,88,69],[87,70,88,71],[40,59,41,63],[40,65,41,69],[40,71,41,75],[40,53,41,57],[47,65,48,69],[43,71,46,75],[47,71,48,75],[43,52,46,57],[47,52,48,57],[43,59,46,63],[47,59,48,63],[43,65,46,69],[26,3,27,10],[33,3,34,12],[19,69,20,73],[24,69,25,70],[33,44,34,48],[33,56,34,60],[33,62,34,66],[38,62,39,63],[38,65,39,66],[33,50,34,54],[31,29,32,30],[29,35,30,36],[31,35,32,36],[29,41,30,42],[22,36,24,38],[36,17,38,19],[36,23,38,25],[19,15,20,19],[19,21,20,25],[19,27,20,31],[26,54,27,58],[33,20,34,24],[19,9,20,13],[33,26,34,30],[36,26,37,27],[38,26,39,27],[36,32,37,33],[38,32,39,33],[36,29,38,31],[22,45,23,46],[31,41,32,42],[24,39,25,40],[26,42,27,46],[26,36,27,40],[22,30,24,32],[22,42,24,44],[22,24,24,26],[24,27,25,28],[22,27,23,28],[29,23,30,24],[31,23,32,24],[29,29,30,30],[22,33,23,34],[22,39,23,40],[36,35,38,37],[38,59,39,60],[36,56,37,57],[93,18,94,19],[93,20,94,21],[93,22,94,23],[93,24,94,25],[93,26,94,27],[93,28,94,29],[89,22,90,23],[89,24,90,25],[89,26,90,27],[89,18,90,19],[89,20,90,21],[91,18,92,19],[91,20,92,21],[91,22,92,23],[89,28,90,29],[91,24,92,25],[91,26,92,27],[91,28,92,29],[40,17,41,21],[40,23,41,27],[36,20,37,21],[38,20,39,21],[91,10,92,11],[91,12,92,13],[91,14,92,15],[91,16,92,17],[29,14,31,16],[29,20,31,22],[29,26,31,28],[38,56,39,57],[29,3,32,12],[36,3,39,15],[40,3,41,15],[33,14,34,18],[29,17,30,18],[31,17,32,18],[89,10,90,11],[87,14,88,15],[87,26,88,27],[87,28,88,29],[87,4,88,5],[87,6,88,7],[87,8,88,9],[36,47,38,49],[89,8,90,9],[38,50,39,51],[93,14,94,15],[93,16,94,17],[7,107,10,112],[8,19,10,22],[26,66,27,70],[19,33,20,37],[26,18,27,22],[26,24,27,28],[19,39,20,43],[19,45,20,49],[19,51,20,55],[19,57,20,61],[19,63,20,67],[19,75,20,79],[19,81,20,85],[26,72,27,76],[8,35,10,38],[8,39,10,42],[8,43,10,46],[8,71,10,74],[24,33,25,34],[17,18,18,19],[15,21,16,22],[15,24,16,25],[17,21,18,22],[17,24,18,25],[8,3,10,6],[8,7,10,10],[8,11,10,14],[24,15,25,16],[24,21,25,22],[17,12,18,13],[15,12,16,13],[15,3,18,7],[17,15,18,16],[19,3,20,7],[22,12,24,14],[22,18,24,20],[22,15,23,16],[22,21,23,22],[22,3,25,6],[22,7,23,10],[24,7,25,10],[7,95,10,100],[8,15,10,18],[8,79,10,82],[8,47,10,50],[8,51,10,54],[17,69,18,70],[15,27,16,28],[15,30,16,31],[17,27,18,28],[17,30,18,31],[15,33,16,34],[15,15,16,16],[15,18,16,19],[8,75,10,78],[15,66,16,67],[17,63,18,64],[17,66,18,67],[15,69,16,70],[15,72,16,73],[15,45,16,46],[15,48,16,49],[17,45,18,46],[17,48,18,49],[15,36,16,37],[5,95,6,100],[5,101,6,106],[26,12,27,16],[15,9,16,10],[17,9,18,10],[4,75,4,78],[4,79,4,82],[4,39,4,42],[4,43,4,46],[4,47,4,50],[4,51,4,54],[4,55,4,58],[4,59,4,62],[4,63,4,66],[4,67,4,70],[4,71,4,74],[7,101,10,106],[8,55,10,58],[8,59,10,62],[8,63,10,66],[8,67,10,70],[8,23,10,26],[8,27,10,30],[8,31,10,34],[4,3,4,6],[4,7,4,10],[4,11,4,14],[4,15,4,18],[4,19,4,22],[4,23,4,26],[4,27,4,30],[4,31,4,34],[4,35,4,38],[36,113,46,117],[33,113,34,117],[47,113,48,117],[89,78,90,79],[91,78,92,79],[93,78,94,79],[33,86,34,91],[36,83,39,91],[40,83,41,91],[40,77,41,81],[89,80,90,81],[91,80,92,81],[93,80,94,81],[89,98,90,99],[87,78,88,79],[87,80,88,81],[89,82,90,83],[89,84,90,85],[87,82,88,83],[87,84,88,85],[87,86,88,87],[87,88,88,89],[87,90,88,91],[87,92,88,93],[100,22,101,23],[100,24,101,25],[100,26,101,27],[100,28,101,29],[100,30,101,31],[100,32,101,33],[91,30,92,31],[91,32,92,33],[93,50,94,51],[91,34,92,35],[93,46,94,47],[93,48,94,49],[91,44,92,45],[93,30,94,31],[93,32,94,33],[93,34,94,35],[91,42,92,43],[91,36,92,37],[91,46,92,47],[91,48,92,49],[91,50,92,51],[100,34,101,35],[100,4,101,5],[100,6,101,7],[100,8,101,9],[100,10,101,11],[100,12,101,13],[100,14,101,15],[100,16,101,17],[100,18,101,19],[100,20,101,21],[102,26,103,27],[102,28,103,29],[102,30,103,31],[102,32,103,33],[104,2,105,3],[102,10,103,11],[102,12,103,13],[102,14,103,15],[102,16,103,17],[102,18,103,19],[102,20,103,21],[102,22,103,23],[102,24,103,25],[102,4,103,5],[102,6,103,7],[102,8,103,9],[104,30,105,31],[104,32,105,33],[104,14,105,15],[104,16,105,17],[104,18,105,19],[104,20,105,21],[104,22,105,23],[104,24,105,25],[104,26,105,27],[104,28,105,29],[104,4,105,5],[104,6,105,7],[104,8,105,9],[104,10,105,11],[104,12,105,13],[122,2,125,5],[122,6,125,9],[109,6,110,7],[111,6,112,7],[113,6,114,7],[117,2,120,5],[117,6,120,9],[117,10,120,13],[109,4,110,5],[111,2,112,3],[111,4,112,5],[113,2,114,3],[113,4,114,5],[106,2,107,3],[98,18,99,19],[98,20,99,21],[98,22,99,23],[98,24,99,25],[98,26,99,27],[98,28,99,29],[98,30,99,31],[98,32,99,33],[98,4,99,5],[98,6,99,7],[98,8,99,9],[98,10,99,11],[98,12,99,13],[98,14,99,15],[98,16,99,17],[57,113,58,119],[87,96,88,97],[87,98,88,99],[89,88,90,89],[89,90,90,91],[89,92,90,93],[89,94,90,95],[89,96,90,97],[93,82,94,83],[93,84,94,85],[93,86,94,87],[93,88,94,89],[93,90,94,91],[93,92,94,93],[93,94,94,95],[93,96,94,97],[91,86,92,87],[91,88,92,89],[91,90,92,91],[91,92,92,93],[91,94,92,95],[91,96,92,97]]}
[null,null,null,"株式会社つくばＩＴパートナー",null,null,null,null,null,null,null,null,null,null,null,null,null,null,null,null,null,null,null,null,null,null,null,null,null,null,null,null,null,null,null,null,null,null,null,null,null,null,null,null,"【キーボード操作テスト】",null,null,null,null,null,null,null,null,null,null,null,null,null,null,null,null,null,null,null,null,null,null,null,null,null,null,null,null,null,null,null,null,null,null,null,null,null,null,null,null,null,null,null,null,null,null,null,null,null,null,null,null,null,null,null,null,null,{"$f":"TODAY()","v":"2021-02-25"}]
[]
[]
[]
[null,null,null,1,null,null,null,2,null,null,null,3,null,null,null,4,null,null,null,5,null,null,null,6,null,null,null,7,null,null,null,8,null,null,null,9,null,null,null,10,null,null,null,11,null,null,null,12,null,null,null,13,null,null,null,14,null,null,null,15,null,null,null,16,null,null,null,17,null,null,null,18,null,null,null,19,null,null,null,20]
[null,null,null,null,null,null,null,null,null,null,null,null,null,null,null,null,null,null,null,null,null,null,null,null,null,null,null,null,null,null,null,null,null,null,null,null,null,null,null,null,null,null,null,null,null,null,null,null,null,null,null,null,null,null,null,null,null,null,null,null,null,null,null,null,null,null,null,null,null,null,null,null,null,null,null,null,null,null,null,null,null,null,null,null,null,null,null,null,null,null,null,null,null,null,null,"問題数",null,null,null,null,null,"正解",null,null,null,null,null,"正解率"]
[]
[null,null,null,null,null,null,null,null,null,null,null,null,null,null,null,null,null,null,null,null,null,null,null,null,null,null,null,null,null,null,null,null,null,null,null,null,null,null,null,null,null,null,null,null,null,null,null,null,null,null,null,null,null,null,null,null,null,null,null,null,null,null,null,null,null,null,null,null,null,null,null,null,null,null,null,null,null,null,null,null,null,null,null,null,null,null,null,null,null,null,null,null,null,null,null,{"$f":"COUNTA(D9:CE11)","v":0},null,null,null,null,null,{"$f":"COUNTIF(D9:CE11,\"○\")","v":0},null,null,null,null,null,{"$f":"IF(CR8=0,\"\",CX8/CR8)","v":""}]
[]
[]
[]
[null,null,null,null,null,null,null,null,null,null,null,null,null,null,null,null,null,null,null,null,null,null,null,null,null,null,null,null,null,null,null,null,null,null,null,null,null,null,null,null,null,null,null,null,null,null,null,null,null,null,null,null,null,null,null,null,null,null,null,null,null,null,null,null,null,null,null,null,null,null,null,null,null,null,null,null,null,null,null,null,null,null,null,null,null,"【ENTER】"]
[]
[]
[]
[null,null,null,"半角/\n全角",null,null,null,null,null,"!",null,null,null,null,null,"\"",null,null,null,null,null,"#",null,null,"ぁ",null,null,"$",null,null,"ぅ",null,null,"%",null,null,"ぇ",null,null,"&",null,null,"ぉ",null,null,"",null,null,"ゃ",null,null,"(",null,null,"ゅ",null,null,")",null,null,"ょ",null,null,null,null,null,"を",null,null,"=",null,null,null,null,null,"～",null,null,null,null,null,"|",null,null,null,null,null,"Back",null,null,null,null,null,null,null,"Tab",null,null,null,null,null,"/",null,null,null,null,null,"*",null,null,null,null,null,"-"]
[]
[null,null,null,null,null,null,null,null,null,"1",null,null,"ぬ",null,null,"2",null,null,"ふ",null,null,"3",null,null,"あ",null,null,"4",null,null,"う",null,null,"5",null,null,"え",null,null,"6",null,null,"お",null,null,"7",null,null,"や",null,null,"8",null,null,"ゆ",null,null,"9",null,null,"よ",null,null,"0",null,null,"わ",null,null,"-",null,null,"ほ",null,null,"^",null,null,"へ",null,null,"\\",null,null,"ー",null,null,"Space"]
[]
[null,null,null,"左小",null,null,null,null,null,"左小",null,null,null,null,null,"左薬",null,null,null,null,null,"左中",null,null,null,null,null,"左人",null,null,null,null,null,"左人",null,null,null,null,null,"右人",null,null,null,null,null,"右人",null,null,null,null,null,"右中",null,null,null,null,null,"右薬",null,null,null,null,null,"右小",null,null,null,null,null,"右小",null,null,null,null,null,"右小",null,null,null,null,null,"右小",null,null,null,null,null,"右小",null,null,null,null,null,null,null,null,null,null,null,null,null,"右中",null,null,null,null,null,"右薬",null,null,null,null,null,"右薬"]
[]
[]
[null,null,null,"Tab",null,null,null,"←",null,null,null,null,"Q",null,null,null,null,null,"W",null,null,null,null,null,"E",null,null,null,null,null,"R",null,null,null,null,null,"T",null,null,null,null,null,"Y",null,null,null,null,null,"U",null,null,null,null,null,"I",null,null,null,null,null,"O",null,null,null,null,null,"P",null,null,null,null,null,"`",null,null,null,null,null,"{",null,null,"「",null,null,"Enter",null,null,null,null,null,null,null,null,null,null,"7",null,null,null,null,8,"8",null,null,null,null,null,"9",null,null,null,null,null,"+"]
[]
[null,null,null,null,null,null,null,"→",null,null,null,null,null,null,null,"た",null,null,null,null,null,"て",null,null,null,null,null,"い",null,null,null,null,null,"す",null,null,null,null,null,"か",null,null,null,null,null,"ん",null,null,null,null,null,"な",null,null,null,null,null,"に",null,null,null,null,null,"ら",null,null,null,null,null,"せ",null,null,"@",null,null,"゛",null,null,"[",null,null,"゜",null,null,null,null,null,null,null,null,null,null,null,null,null,"Home",null,null,null,null,null,"↑",null,null,null,null,null,"PgUp"]
[]
[null,null,null,"左小",null,null,null,null,null,null,null,null,"左小",null,null,null,null,null,"左薬",null,null,null,null,null,"左中",null,null,null,null,null,"左人",null,null,null,null,null,"左人",null,null,null,null,null,"右人",null,null,null,null,null,"右人",null,null,null,null,null,"右中",null,null,null,null,null,"右薬",null,null,null,null,null,"右小",null,null,null,null,null,"右小",null,null,null,null,null,"右小",null,null,null,null,null,null,null,null,null,null,null,null,null,null,null,null,"右人",null,null,null,null,null,"右中",null,null,null,null,null,"右薬"]
[]
[]
[null,null,null,"Caps Lock",null,null,null,null,null,null,null,null,null,null,"A",null,null,null,null,null,"S",null,null,null,null,null,"D",null,null,null,null,null,"F",null,null,null,null,null,"G",null,null,null,null,null,"H",null,null,null,null,null,"J",null,null,null,null,null,"K",null,null,null,null,null,"L",null,null,null,null,null,"+",null,null,null,null,null,"*",null,null,null,null,null,"}",null,null,"」",null,null,null,null,null,null,null,null,null,null,null,"4",null,null,null,null,null,"5",null,null,null,null,null,"6"]
[]
[null,null,null,null,null,null,null,null,null,null,null,null,null,null,null,null,null,"ち",null,null,null,null,null,"と",null,null,null,null,null,"し",null,null,null,null,null,"は",null,null,null,null,null,"き",null,null,null,null,null,"く",null,null,null,null,null,"ま",null,null,null,null,null,"の",null,null,null,null,null,"り",null,null,";",null,null,"れ",null,null,":",null,null,"け",null,null,"]",null,null,"む",null,null,null,null,null,null,null,null,null,null,null,"←",null,null,null,null,null,null,null,null,null,null,null,"→"]
[]
[null,null,null,"左小",null,null,null,null,null,null,null,null,null,null,"左小",null,null,null,null,null,"左薬",null,null,null,null,null,"左中",null,null,null,null,null,"左人",null,null,null,null,null,"左人",null,null,null,null,null,"右人",null,null,null,null,null,"右人",null,null,null,null,null,"右中",null,null,null,null,null,"右薬",null,null,null,null,null,"右小",null,null,null,null,null,"右小",null,null,null,null,null,"右小",null,null,null,null,null,"右小",null,null,null,null,null,null,null,null,"右人",null,null,null,null,null,"右中",null,null,null,null,null,"右薬",null,null,null,null,null,"右小"]
[]
[]
[null,null,null,"⇧ Shift",null,null,null,null,null,null,null,null,null,null,null,null,null,"Z",null,null,null,null,null,"X",null,null,null,null,null,"C",null,null,null,null,null,"V",null,null,null,null,null,"B",null,null,null,null,null,"N",null,null,null,null,null,"M",null,null,null,null,null,"<",null,null,"、",null,null,">",null,null,"。",null,null,"?",null,null,"・",null,null,"_",null,null,null,null,null,"",null,null,null,null,null,null,null,null,null,null,null,"1",null,null,null,null,null,"2",null,null,null,null,null,"3",null,null,null,null,null,"Enter"]
[]
[null,null,null,null,null,null,null,null,null,null,null,null,null,null,null,null,null,null,null,null,"つ",null,null,null,null,null,"さ",null,null,null,null,null,"そ",null,null,null,null,null,"ひ",null,null,null,null,null,"こ",null,null,null,null,null,"み",null,null,null,null,null,"も",null,null,",",null,null,"ね",null,null,".",null,null,"る",null,null,"/",null,null,"め",null,null,"＼",null,null,"ろ",null,null,null,null,null,null,null,null,null,null,null,null,null,null,"End",null,null,null,null,null,"↓",null,null,null,null,null,"PgDn"]
[]
[null,null,null,"左小",null,null,null,null,null,null,null,null,null,null,null,null,null,"左小",null,null,null,null,null,"左薬",null,null,null,null,null,"左中",null,null,null,null,null,"左人",null,null,null,null,null,"左人",null,null,null,null,null,"右人",null,null,null,null,null,"右人",null,null,null,null,null,"右中",null,null,null,null,null,"右薬",null,null,null,null,null,"右小",null,null,null,null,null,"右小",null,null,null,null,null,"右小",null,null,null,null,null,null,null,null,null,null,null,"右人",null,null,null,null,null,"右中",null,null,null,null,null,"右薬"]
[]
[]
[null,null,null,"Ctrl",null,null,null,null,null,null,null,"Fn",null,null,null,null,null,null,null,null,null,null,null,"Alt",null,null,null,null,null,"無変換",null,null,null,null,null,null,"空",null,null,null,null,null,null,null,null,null,null,null,null,null,null,null,"変換",null,null,null,null,null,null,"カタカナ\nひらがな\nローマ字",null,null,null,null,null,null,null,null,null,null,null,"Ctrl",null,null,null,null,null,null,null,null,null,null,null,null,null,null,null,null,null,null,null,null,null,null,null,"0",null,null,null,null,null,"00",null,null,null,null,null,"."]
[]
[null,null,null,null,null,null,null,null,null,null,null,null,null,null,null,null,null,null,null,null,null,null,null,null,null,null,null,null,null,null,null,null,null,null,null,null,null,null,null,null,null,null,null,null,null,null,null,null,null,null,null,null,null,null,null,null,null,null,null,null,null,null,null,null,null,null,null,null,null,null,null,null,null,null,null,null,null,null,null,null,null,null,null,null,null,null,null,null,null,null,null,null,null,null,null,"Ins",null,null,null,null,null,null,null,null,null,null,null,"Del"]
[]
[null,null,null,"左小",null,null,null,null,null,null,null,"左小",null,null,null,null,null,null,null,null,null,null,null,null,null,null,null,null,null,"左親",null,null,null,null,null,null,"左親",null,null,null,null,null,null,null,"右親",null,null,null,null,null,null,null,"右親",null,null,null,null,null,null,null,null,null,null,null,null,null,null,null,null,null,null,null,null,null,null,null,null,null,null,null,null,null,null,null,null,null,null,null,null,null,null,null,null,null,null,"右人",null,null,null,null,null,"右中",null,null,null,null,null,"右薬",null,null,null,null,null,"右小"]
[]
[]
[]
[null,null,null,"速度選択"]
[]
[]
[]
[]
[null,null,null,null,null,null,null,null,null,null,null,null,null,null,null,null,null,null,null,null,null,null,null,null,null,null,null,null,null,null,null,null,null,null,null,null,null,null,null,null,null,null,null,null,null,null,null,null,null,null,null,null,null,null,null,null,null,null,null,null,null,null,null,null,null,null,null,null,null,null,null,null,null,null,null,null,null,8754]
[null,null,null,null,null,null,null,null,null,null,null,null,null,null,null,null,null,null,null,null,null,null,null,null,null,null,null,null,null,null,null,null,null,null,null,null,null,null,null,null,null,null,null,null,null,null,null,null,null,null,null,null,null,null,null,null,null,null,null,null,null,null,null,null,null,null,null,null,null,null,null,null,null,null,null,null,null,null,null,null,null,null,null,null,null,null,null,null,null,null,null,null,null,null,null,null,null,null,null,null,null,"【DEL】",null,null,null,null,null,null,null,null,null,null,null,"【F10】"]
[]
[null,null,null,null,null,null,null,null,null,null,null,null,null,null,null,null,null,null,null,null,null,null,null,null,null,null,null,null,null,null,null,null,null,null,null,null,null,null,null,null,null,null,null,null,null,null,null,null,null,null,null,null,null,null,null,null,null,null,null,null,null,null,null,null,null,null,null,null,null,null,null,null,null,null,null,null,null,null,null,null,null,null,null,null,null,null,null,null,null,null,null,null,null,null,null,null,null,null,null,null,null,null,null,null,null,null,null,null,null,null,null,null,null,null,null,null,null,null,null,"Copyright © 2017 Tsukuba IT Partner Co., Ltd. All Rights Reserved."]
[]
[null,null,null,null,"【←】"]
[]
[]
[]
[]
[]
[]
[]
[]
[]
[]
[]
[]
[]
[]
[]
[null,null,null,""]
[]
[]
[]
[]
[]
[]
[]
[]
[]
[]
[]
[]
[]
[null,null,null,null,0,null,1,null,2,null,3,null,4,null,5,null,6,null,7,null,8,null,9,null,"Q",null,"W",null,"E",null,"R",null,"T",null,"Y",null,"U",null,"I",null,"O",null,"P",null,"A",null,"S",null,"D",null,"F",null,"G",null,"H",null,"J",null,"K",null,"L",null,"Z",null,"X",null,"C",null,"V",null,"B",null,"N",null,"M",null,"空",null,"-",null,"^",null,"\\",null,"@",null,"[",null,";",null,":",null,"]",null,",",null,".",null,"/",null,"＼",null,"bs",null,"en"]
[]
[null,null,null,null,1,null,2,null,3,null,4,null,5,null,6,null,7,null,8,null,9,null,10,null,11,null,12,null,13,null,14,null,15,null,16,null,17,null,18,null,19,null,20,null,21,null,22,null,23,null,24,null,25,null,26,null,27,null,28,null,29,null,30,null,31,null,32,null,33,null,34,null,35,null,36,null,37,null,38,null,39,null,40,null,41,null,42,null,43,null,44,null,45,null,46,null,47,null,48,null,49,null,50,null,51]
[]
[]
[]
[]
[]
[]
[]
[]
[null,null,null,null,0,null,1,null,2,null,3,null,4,null,5,null,6,null,7,null,8,null,9,null,".",null,"/",null,"*",null,"-",null,"+",null,"en"]
[]
[null,null,null,null,1,null,{"$f":"E105+1","v":2},null,{"$f":"G105+1","v":3},null,{"$f":"I105+1","v":4},null,{"$f":"K105+1","v":5},null,{"$f":"M105+1","v":6},null,{"$f":"O105+1","v":7},null,{"$f":"Q105+1","v":8},null,{"$f":"S105+1","v":9},null,{"$f":"U105+1","v":10},null,{"$f":"W105+1","v":11},null,{"$f":"Y105+1","v":12},null,{"$f":"AA105+1","v":13},null,{"$f":"AC105+1","v":14},null,{"$f":"AE105+1","v":15},null,{"$f":"AG105+1","v":16}]
[]
[]
[]
[]
[null,null,null,null,{"$f":"IF(ISERROR(HLOOKUP(\"○\",$E$90:$DB$95,3,FALSE))=TRUE,\"\",HLOOKUP(\"○\",$E$90:$DB$95,3,FALSE))","v":""},null,{"$f":"IF(ISERROR(HLOOKUP(\"○\",$E$101:$AJ$106,3,FALSE))=TRUE,\"\",HLOOKUP(\"○\",$E$101:$AJ$106,3,FALSE))","v":""}]
[]
[null,null,null,null,null,null,9]
[]
[]
[]
[]
[]
[null,null,false,null,null,null,true,null,null,null,false,null,null,null,null,null,null,null,null,null,null,null,1]
[]
[]
[]
[]
[null,null,true,null,null,null,false]

{"sheet":"キー判定","index":2,"n_rows":258,"n_cols":19,"rows_kept":258,"cut":false,"hidden":true,"merged":[[1,18,2,18],[0,11,0,12],[0,13,0,14],[0,7,0,9]]}
["キー名","仮想キー定数","値","16進","10進","Onkey名","マクロ","表示",null,null,null,"キーテーブル",null,"表示",null,"読込内容","選",null,"押下キー"]
["LeftClick","VK_LBUTTON","&H1",{"$f":"MID(C2,3,3)","v":"1"},{"$f":"IF(D2=\"\",\"\",HEX2DEC(D2))","v":1},"",null,null,null,null,null,0,{"$f":"IFERROR(INDEX(A:A,MATCH(L2,E:E,0)),\"\")","v":""},{"$f":"IFERROR(INDEX(I:I,MATCH(L2,E:E,0))&\"\",\"\")","v":""},{"$f":"IF(N2=\"\",\"\",IFERROR(INDEX(J:J,MATCH(L2,E:E,0)),\"\"))","v":""},0,{"$f":"IF(OR(P2=128,P2=129),1,\"\")","v":""},null,{"$f":"IFERROR(INDEX(M:M,MATCH(1,Q:Q,0)),\"\")","v":"6"}]
["RightClick","VK_RBUTTON","&H2","2",2,"",null,null,null,null,null,{"$f":"L2+1","v":1},"LeftClick","","",0,{"$f":"IF(OR(P3=128,P3=129),1,\"\")","v":""}]
["Cancel","VK_CANCEL","&H3","3",3,"",null,null,null,null,null,{"$f":"L3+1","v":2},"RightClick","","",0,"",null,{"$f":"IFERROR(INDEX(N:N,MATCH(1,Q:Q,0)),\"\")","v":"6"}]
["MiddleClick","VK_MBUTTON","&H4","4",4,"",null,null,null,null,null,3,"Cancel","","",0,"",null,{"$f":"IFERROR(INDEX(O:O,MATCH(1,Q:Q,0)),\"\")","v":17}]
["BackSpace","VK_BACK","&H8","8",8,"{BS}","KeyPush_BS","○","bs",103,null,4,"MiddleClick","","",0,""]
["TAB","VK_TAB","&H9","9",9,"{TAB}","KeyPush_TAB","◎","ta",37,null,5,"","","",0,""]
["Clear","VK_CLEAR","&HC","C",12,"{CLEAR}","KeyPush_CLEAR",null,null,null,null,6,"","","",0,""]
["Enter","VK_RETURN","&HD","D",13,"{RETURN}","KeyPush_RETURN","○","en",105,null,7,"","","",0,""]
["LeftShift","VK_SHIFT","&H10","10",16,"",null,null,null,null,null,8,"BackSpace","bs",103,1,""]
["LeftControl","VK_CONTROL","&H11","11",17,"",null,null,null,null,null,9,"TAB","ta",37,1,""]
["LeftMenu","VK_MENU","&H12","12",18,"",null,null,null,null,null,10,"","","",0,""]
["Pause","VK_PAUSE","&H13","13",19,"{BREAK}",null,null,null,null,null,11,"","","",0,""]
["CapsLock","VK_CAPITAL","&H14","14",20,"{CAPSLOCK}",null,null,null,null,null,12,"Clear","","",1,""]
["Esc","VK_ESCAPE","&H1B","1B",27,"{ESC}",null,null,null,null,null,13,"Enter","en",105,1,""]
["Space","VK_SPACE","&H20","20",32,"\" \"","KeyPush_BR","○","空",77,null,14,"","","",0,""]
["PageUp","VK_PRIOR","&H21","21",33,"{PGUP}",null,null,null,null,null,15,"","","",0,""]
["PageDown","VK_NEXT","&H22","22",34,"{PGDN}",null,null,null,null,null,16,"LeftShift","","",1,""]
["End","VK_END","&H23","23",35,"{END}",null,null,null,null,null,17,"LeftControl","","",0,""]
["Home","VK_HOME","&H24","24",36,"{HOME}",null,null,null,null,null,18,"LeftMenu","","",0,""]
["←","VK_LEFT","&H25","25",37,"{LEFT}",null,null,null,null,null,19,"Pause","","",0,""]
["↑","VK_UP","&H26","26",38,"{UP}",null,null,null,null,null,20,"CapsLock","","",0,""]
["→","VK_RIGHT","&H27","27",39,"{RIGHT}",null,null,null,null,null,21,"","","",0,""]
["↓","VK_DOWN","&H28","28",40,"{DOWN}",null,null,null,null,null,22,"","","",0,""]
["Select","VK_SELECT","&H29","29",41,"",null,null,null,null,null,23,"","","",0,""]
["PrintScreen","VK_PRINT","&H2A","2A",42,"",null,null,null,null,null,24,"","","",0,""]
["Execute","VK_EXECUTE","&H2B","2B",43,"",null,null,null,null,null,25,"","","",0,""]
["SnapShot","VK_SNAPSHOT","&H2C","2C",44,"",null,null,null,null,null,26,"","","",0,""]
["Insert","VK_INSERT","&H2D","2D",45,"{INSERT}",null,null,null,null,null,27,"Esc","","",0,""]
["Delete","VK_DELETE","&H2E","2E",46,"{DEL}",null,null,null,null,null,28,"","","",1,""]
["Help","VK_HELP","&H2F","2F",47,"{HELP}",null,null,null,null,null,29,"","","",1,""]
["0","VK_0","&H30","30",48,"0","KeyPush_1","○",0,5,null,30,"","","",0,""]
["1","VK_1","&H31","31",49,"1","KeyPush_2","○",1,7,null,31,"","","",0,""]
["2","VK_2","&H32",{"$f":"MID(C34,3,3)","v":"32"},{"$f":"IF(D34=\"\",\"\",HEX2DEC(D34))","v":50},"2","KeyPush_3","○",2,9,null,32,"Space","空",77,0,""]
["3","VK_3","&H33","33",51,"3","KeyPush_4","○",3,11,null,33,"PageUp","","",0,""]
["4","VK_4","&H34","34",52,"4","KeyPush_5","○",4,13,null,34,"PageDown","","",0,""]
["5","VK_5","&H35","35",53,"5","KeyPush_6","○",5,15,null,35,"End","","",0,""]
["6","VK_6","&H36","36",54,"6","KeyPush_7","○",6,17,null,36,"Home","","",1,""]
["7","VK_7","&H37","37",55,"7","KeyPush_8","○",7,19,null,37,"←","","",0,""]
["8","VK_8","&H38","38",56,"8","KeyPush_9","○",8,21,null,38,"↑","","",0,""]
["9","VK_9","&H39","39",57,"9","KeyPush_0","○",9,23,null,39,"→","","",0,""]
["A","VK_A","&H41","41",65,"a","KeyPush_A","○","A",45,null,40,"↓","","",0,""]
["B","VK_B","&H42","42",66,"b","KeyPush_B","○","B",71,null,41,"Select","","",0,""]
["C","VK_C","&H43","43",67,"c","KeyPush_C","○","C",67,null,42,"PrintScreen","","",0,""]
["D","VK_D","&H44","44",68,"d","KeyPush_D","○","D",49,null,43,"Execute","","",0,""]
["E","VK_E","&H45","45",69,"e","KeyPush_E","○","E",29,null,44,"SnapShot","","",0,""]
["F","VK_F","&H46","46",70,"f","KeyPush_F","○","F",51,null,45,"Insert","","",0,""]
["G","VK_G","&H47","47",71,"g","KeyPush_G","○","G",53,null,46,"Delete","","",0,""]
["H","VK_H","&H48","48",72,"h","KeyPush_H","○","H",55,null,47,"Help","","",0,""]
["I","VK_I","&H49","49",73,"i","KeyPush_I","○","I",39,null,48,"0","0",5,0,""]
["J","VK_J","&H4A","4A",74,"j","KeyPush_J","○","J",57,null,49,"1","1",7,0,""]
["K","VK_K","&H4B","4B",75,"k","KeyPush_K","○","K",59,null,50,"2","2",9,0,""]
["L","VK_L","&H4C","4C",76,"l","KeyPush_L","○","L",61,null,51,"3","3",11,0,""]
["M","VK_M","&H4D","4D",77,"m","KeyPush_M","○","M",75,null,52,"4","4",13,0,""]
["N","VK_N","&H4E","4E",78,"n","KeyPush_N","○","N",73,null,53,"5","5",15,1,""]
["O","VK_O","&H4F","4F",79,"o","KeyPush_O","○","O",41,null,54,"6","6",17,129,1]
["P","VK_P","&H50","50",80,"p","KeyPush_P","○","P",43,null,55,"7","7",19,1,""]
["Q","VK_Q","&H51","51",81,"q","KeyPush_Q","○","Q",25,null,56,"8","8",21,0,""]
["R","VK_R","&H52","52",82,"r","KeyPush_R","○","R",31,null,57,"9","9",23,0,""]
["S","VK_S","&H53","53",83,"s","KeyPush_S","○","S",47,null,58,"","","",0,""]
["T","VK_T","&H54","54",84,"t","KeyPush_T","○","T",33,null,59,"","","",0,""]
["U","VK_U","&H55","55",85,"u","KeyPush_U","○","U",37,null,60,"","","",0,""]
["V","VK_V","&H56","56",86,"v","KeyPush_V","○","V",69,null,61,"","","",0,""]
["W","VK_W","&H57","57",87,"w","KeyPush_W","○","W",27,null,62,"","","",0,""]
["X","VK_X","&H58","58",88,"x","KeyPush_X","○","X",65,null,63,"","","",0,""]
["Y","VK_Y","&H59",{"$f":"MID(C66,3,3)","v":"59"},{"$f":"IF(D66=\"\",\"\",HEX2DEC(D66))","v":89},"y","KeyPush_Y","○","Y",35,null,64,{"$f":"IFERROR(INDEX(A:A,MATCH(L66,E:E,0)),\"\")","v":""},{"$f":"IFERROR(INDEX(I:I,MATCH(L66,E:E,0))&\"\",\"\")","v":""},{"$f":"IF(N66=\"\",\"\",IFERROR(INDEX(J:J,MATCH(L66,E:E,0)),\"\"))","v":""},0,""]
["Z","VK_Z","&H5A","5A",90,"z","KeyPush_Z","○","Z",63,null,65,"A","A",45,0,{"$f":"IF(OR(P67=128,P67=129),1,\"\")","v":""}]
["0","VK_NUMPAD0","&H60","60",96,"{96}","KeyPush_96","◎","0",5,null,{"$f":"L67+1","v":66},"B","B",71,1,""]
["1","VK_NUMPAD1","&H61","61",97,"{97}","KeyPush_97","◎","1",7,null,67,"C","C",67,1,""]
["2","VK_NUMPAD2","&H62","62",98,"{98}","KeyPush_98","◎","2",9,null,68,"D","D",49,1,""]
["3","VK_NUMPAD3","&H63","63",99,"{99}","KeyPush_99","◎","3",11,null,69,"E","E",29,1,""]
["4","VK_NUMPAD4","&H64","64",100,"{100}","KeyPush_100","◎","4",13,null,70,"F","F",51,0,""]
["5","VK_NUMPAD5","&H65","65",101,"{101}","KeyPush_101","◎","5",15,null,71,"G","G",53,0,""]
["6","VK_NUMPAD6","&H66","66",102,"{102}","KeyPush_102","◎","6",17,null,72,"H","H",55,1,""]
["7","VK_NUMPAD7","&H67","67",103,"{103}","KeyPush_103","◎","7",19,null,73,"I","I",39,0,""]
["8","VK_NUMPAD8","&H68","68",104,"{104}","KeyPush_104","◎","8",21,null,74,"J","J",57,0,""]
["9","VK_NUMPAD9","&H69","69",105,"{105}","KeyPush_105","◎","9",23,null,75,"K","K",59,0,""]
["*","VK_MULTIPLY","&H6A","6A",106,"{106}","KeyPush_106","◎","*",29,null,76,"L","L",61,0,""]
["+","VK_ADD","&H6B","6B",107,"{107}","KeyPush_107","◎","+",33,null,77,"M","M",75,1,""]
["Enter","VK_SEPARATOR","&H6C","6C",108,"{ENTER}","KeyPush_ENTER","◎","en",35,null,78,"N","N",73,0,""]
["-","VK_SUBTRACT","&H6D","6D",109,"{109}","KeyPush_109","◎","-",31,null,79,"O","O",41,0,""]
[".","VK_DECIMAL","&H6E","6E",110,"{110}","KeyPush_110","◎",".",25,null,80,"P","P",43,0,""]
["/","VK_DIVIDE","&H6F","6F",111,"{111}","KeyPush_111","◎","/",27,null,81,"Q","Q",25,0,""]
["F1","VK_F1","&H70","70",112,"{F1}",null,null,null,null,null,82,"R","R",31,0,""]
["F2","VK_F2","&H71","71",113,"{F2}",null,null,null,null,null,83,"S","S",47,1,""]
["F3","VK_F3","&H72","72",114,"{F3}",null,null,null,null,null,84,"T","T",33,0,""]
["F4","VK_F4","&H73","73",115,"{F4}",null,null,null,null,null,85,"U","U",37,0,""]
["F5","VK_F5","&H74","74",116,"{F5}",null,null,null,null,null,86,"V","V",69,1,""]
["F6","VK_F6","&H75","75",117,"{F6}",null,null,null,null,null,87,"W","W",27,0,""]
["F7","VK_F7","&H76","76",118,"{F7}",null,null,null,null,null,88,"X","X",65,0,""]
["F8","VK_F8","&H77","77",119,"{F8}",null,null,null,null,null,89,"Y","Y",35,1,""]
["F9","VK_F9","&H78","78",120,"{F9}",null,null,null,null,null,90,"Z","Z",63,0,""]
["F10","VK_F10","&H79","79",121,"{F10}",null,null,null,null,null,91,"","","",0,""]
["F11","VK_F11","&H7A","7A",122,"{F11}",null,null,null,null,null,92,"","","",0,""]
["F12","VK_F12","&H7B","7B",123,"{F12}",null,null,null,null,null,93,"","","",0,""]
["F13","VK_F13","&H7C","7C",124,"{F13}",null,null,null,null,null,94,"","","",0,""]
["F14","VK_F14","&H7D","7D",125,"{F14}",null,null,null,null,null,95,"","","",0,""]
["F15","VK_F15","&H7E",{"$f":"MID(C98,3,3)","v":"7E"},{"$f":"IF(D98=\"\",\"\",HEX2DEC(D98))","v":126},"{F15}",null,null,null,null,null,96,"0","0",5,0,""]
["F16","VK_F16","&H7F","7F",127,"",null,null,null,null,null,97,"1","1",7,0,""]
["F17","VK_F17","&H80","80",128,"",null,null,null,null,null,98,"2","2",9,1,""]
["F18","VK_F18","&H81","81",129,"",null,null,null,null,null,99,"3","3",11,0,""]
["F19","VK_F19","&H82","82",130,"",null,null,null,null,null,100,"4","4",13,0,""]
["F20","VK_F20","&H83","83",131,"",null,null,null,null,null,101,"5","5",15,0,""]
["F21","VK_F21","&H84","84",132,"",null,null,null,null,null,102,"6","6",17,0,""]
["F22","VK_F22","&H85","85",133,"",null,null,null,null,null,103,"7","7",19,0,""]
["F23","VK_F23","&H86","86",134,"",null,null,null,null,null,104,"8","8",21,1,""]
["F24","VK_F24","&H87","87",135,"",null,null,null,null,null,105,"9","9",23,0,""]
["Num Lock","VK_NUMLOCK","&H90","90",144,"{NUMLOCK}",null,null,null,null,null,106,"*","*",29,0,""]
["RightShift","VK_RSHIFT","&HA1","A1",161,"",null,null,null,null,null,107,"+","+",33,0,""]
["RightControl","VK_RCONTROL","&HA3","A3",163,"",null,null,null,null,null,108,"Enter","en",35,0,""]
["RightMenu","VK_RMENU","&HA5","A5",165,"",null,null,null,null,null,109,"-","-",31,0,""]
[":","VK_CORN","&HBA","BA",186,":","KeyPush_CR","○",":",91,null,110,".",".",25,0,""]
[";","VK_SEMI","&HBB","BB",187,";","KeyPush_SC","○",";",89,null,111,"/","/",27,0,""]
[",","VK_KNM","&HBC","BC",188,",","KeyPush_CN","○",",",95,null,112,"F1","","",0,""]
["-","VK_HIFN","&HBD","BD",189,"-","KeyPush_HI","○","-",79,null,113,"F2","","",0,""]
[".","VK_TEN","&HBE","BE",190,".","KeyPush_PR","○",".",97,null,114,"F3","","",0,""]
["/","VK_SRA","&HBF","BF",191,"/","KeyPush_SR","○","/",99,null,115,"F4","","",0,""]
["@","VK_ATTO","&HC0","C0",192,"@","KeyPush_AD","○","@",85,null,116,"F5","","",0,""]
["[","VK_HKAKO","&HDB","DB",219,"{[}","KeyPush_K1","○","[",87,null,117,"F6","","",0,""]
["\\","VK_EN","&HDC","DC",220,"\\","KeyPush_EN","○","\\",83,null,118,"F7","","",0,""]
["]","VK_MKAKO","&HDD","DD",221,"{]}","KeyPush_K2","○","]",93,null,119,"F8","","",0,""]
["^","VK_YANE","&HDE","DE",222,"{^}","KeyPush_CH","○","^",81,null,120,"F9","","",0,""]
["＼","VK_GSRA","&HE2","E2",226,"",null,"○","＼",101,null,121,"F10","","",0,""]
[null,null,null,null,null,"~",null,null,null,null,null,122,"F11","","",0,""]
[null,null,null,null,null,"{SCROLLLOCK}",null,null,null,null,null,123,"F12","","",0,""]
[null,null,null,null,null,null,null,null,null,null,null,124,"F13","","",0,""]
[null,null,null,null,null,null,null,null,null,null,null,125,"F14","","",0,""]
[null,null,null,null,null,null,null,null,null,null,null,126,"F15","","",0,""]
[null,null,null,null,null,null,null,null,null,null,null,127,"F16","","",0,""]
[null,null,null,null,null,null,null,null,null,null,null,128,{"$f":"IFERROR(INDEX(A:A,MATCH(L130,E:E,0)),\"\")","v":"F17"},{"$f":"IFERROR(INDEX(I:I,MATCH(L130,E:E,0))&\"\",\"\")","v":""},{"$f":"IF(N130=\"\",\"\",IFERROR(INDEX(J:J,MATCH(L130,E:E,0)),\"\"))","v":""},0,""]
[null,null,null,null,null,null,null,null,null,null,null,129,"F18","","",0,{"$f":"IF(OR(P131=128,P131=129),1,\"\")","v":""}]
[null,null,null,null,null,null,null,null,null,null,null,{"$f":"L131+1","v":130},"F19","","",0,""]
[null,null,null,null,null,null,null,null,null,null,null,131,"F20","","",0,""]
[null,null,null,null,null,null,null,null,null,null,null,132,"F21","","",0,""]
[null,null,null,null,null,null,null,null,null,null,null,133,"F22","","",0,""]
[null,null,null,null,null,null,null,null,null,null,null,134,"F23","","",0,""]
[null,null,null,null,null,null,null,null,null,null,null,135,"F24","","",0,""]
[null,null,null,null,null,null,null,null,null,null,null,136,"","","",0,""]
[null,null,null,null,null,null,null,null,null,null,null,137,"","","",0,""]
[null,null,null,null,null,null,null,null,null,null,null,138,"","","",0,""]
[null,null,null,null,null,null,null,null,null,null,null,139,"","","",0,""]
[null,null,null,null,null,null,null,null,null,null,null,140,"","","",0,""]
[null,null,null,null,null,null,null,null,null,null,null,141,"","","",0,""]
[null,null,null,null,null,null,null,null,null,null,null,142,"","","",0,""]
[null,null,null,null,null,null,null,null,null,null,null,143,"","","",0,""]
[null,null,null,null,null,null,null,null,null,null,null,144,"Num Lock","","",1,""]
[null,null,null,null,null,null,null,null,null,null,null,145,"","","",0,""]
[null,null,null,null,null,null,null,null,null,null,null,146,"","","",0,""]
[null,null,null,null,null,null,null,null,null,null,null,147,"","","",0,""]
[null,null,null,null,null,null,null,null,null,null,null,148,"","","",0,""]
[null,null,null,null,null,null,null,null,null,null,null,149,"","","",0,""]
[null,null,null,null,null,null,null,null,null,null,null,150,"","","",0,""]
[null,null,null,null,null,null,null,null,null,null,null,151,"","","",0,""]
[null,null,null,null,null,null,null,null,null,null,null,152,"","","",0,""]
[null,null,null,null,null,null,null,null,null,null,null,153,"","","",0,""]
[null,null,null,null,null,null,null,null,null,null,null,154,"","","",0,""]
[null,null,null,null,null,null,null,null,null,null,null,155,"","","",0,""]
[null,null,null,null,null,null,null,null,null,null,null,156,"","","",0,""]
[null,null,null,null,null,null,null,null,null,null,null,157,"","","",0,""]
[null,null,null,null,null,null,null,null,null,null,null,158,"","","",0,""]
[null,null,null,null,null,null,null,null,null,null,null,159,"","","",0,""]
[null,null,null,null,null,null,null,null,null,null,null,160,"","","",1,""]
[null,null,null,null,null,null,null,null,null,null,null,161,"RightShift","","",0,""]
[null,null,null,null,null,null,null,null,null,null,null,162,"","","",0,""]
[null,null,null,null,null,null,null,null,null,null,null,163,"RightControl","","",0,""]
[null,null,null,null,null,null,null,null,null,null,null,164,"","","",0,""]
[null,null,null,null,null,null,null,null,null,null,null,165,"RightMenu","","",0,""]
[null,null,null,null,null,null,null,null,null,null,null,166,"","","",0,""]
[null,null,null,null,null,null,null,null,null,null,null,167,"","","",0,""]
[null,null,null,null,null,null,null,null,null,null,null,168,"","","",0,""]
[null,null,null,null,null,null,null,null,null,null,null,169,"","","",0,""]
[null,null,null,null,null,null,null,null,null,null,null,170,"","","",0,""]
[null,null,null,null,null,null,null,null,null,null,null,171,"","","",0,""]
[null,null,null,null,null,null,null,null,null,null,null,172,"","","",0,""]
[null,null,null,null,null,null,null,null,null,null,null,173,"","","",0,""]
[null,null,null,null,null,null,null,null,null,null,null,174,"","","",0,""]
[null,null,null,null,null,null,null,null,null,null,null,175,"","","",0,""]
[null,null,null,null,null,null,null,null,null,null,null,176,"","","",0,""]
[null,null,null,null,null,null,null,null,null,null,null,177,"","","",0,""]
[null,null,null,null,null,null,null,null,null,null,null,178,"","","",0,""]
[null,null,null,null,null,null,null,null,null,null,null,179,"","","",0,""]
[null,null,null,null,null,null,null,null,null,null,null,180,"","","",0,""]
[null,null,null,null,null,null,null,null,null,null,null,181,"","","",0,""]
[null,null,null,null,null,null,null,null,null,null,null,182,"","","",0,""]
[null,null,null,null,null,null,null,null,null,null,null,183,"","","",0,""]
[null,null,null,null,null,null,null,null,null,null,null,184,"","","",0,""]
[null,null,null,null,null,null,null,null,null,null,null,185,"","","",0,""]
[null,null,null,null,null,null,null,null,null,null,null,186,":",":",91,0,""]
[null,null,null,null,null,null,null,null,null,null,null,187,";",";",89,0,""]
[null,null,null,null,null,null,null,null,null,null,null,188,",",",",95,0,""]
[null,null,null,null,null,null,null,null,null,null,null,189,"-","-",79,1,""]
[null,null,null,null,null,null,null,null,null,null,null,190,".",".",97,0,""]
[null,null,null,null,null,null,null,null,null,null,null,191,"/","/",99,0,""]
[null,null,null,null,null,null,null,null,null,null,null,192,{"$f":"IFERROR(INDEX(A:A,MATCH(L194,E:E,0)),\"\")","v":"@"},{"$f":"IFERROR(INDEX(I:I,MATCH(L194,E:E,0))&\"\",\"\")","v":"@"},{"$f":"IF(N194=\"\",\"\",IFERROR(INDEX(J:J,MATCH(L194,E:E,0)),\"\"))","v":85},0,""]
[null,null,null,null,null,null,null,null,null,null,null,193,"","","",0,{"$f":"IF(OR(P195=128,P195=129),1,\"\")","v":""}]
[null,null,null,null,null,null,null,null,null,null,null,{"$f":"L195+1","v":194},"","","",0,""]
[null,null,null,null,null,null,null,null,null,null,null,195,"","","",0,""]
[null,null,null,null,null,null,null,null,null,null,null,196,"","","",0,""]
[null,null,null,null,null,null,null,null,null,null,null,197,"","","",0,""]
[null,null,null,null,null,null,null,null,null,null,null,198,"","","",0,""]
[null,null,null,null,null,null,null,null,null,null,null,199,"","","",0,""]
[null,null,null,null,null,null,null,null,null,null,null,200,"","","",0,""]
[null,null,null,null,null,null,null,null,null,null,null,201,"","","",0,""]
[null,null,null,null,null,null,null,null,null,null,null,202,"","","",0,""]
[null,null,null,null,null,null,null,null,null,null,null,203,"","","",0,""]
[null,null,null,null,null,null,null,null,null,null,null,204,"","","",0,""]
[null,null,null,null,null,null,null,null,null,null,null,205,"","","",0,""]
[null,null,null,null,null,null,null,null,null,null,null,206,"","","",0,""]
[null,null,null,null,null,null,null,null,null,null,null,207,"","","",0,""]
[null,null,null,null,null,null,null,null,null,null,null,208,"","","",0,""]
[null,null,null,null,null,null,null,null,null,null,null,209,"","","",0,""]
[null,null,null,null,null,null,null,null,null,null,null,210,"","","",0,""]
[null,null,null,null,null,null,null,null,null,null,null,211,"","","",0,""]
[null,null,null,null,null,null,null,null,null,null,null,212,"","","",0,""]
[null,null,null,null,null,null,null,null,null,null,null,213,"","","",0,""]
[null,null,null,null,null,null,null,null,null,null,null,214,"","","",0,""]
[null,null,null,null,null,null,null,null,null,null,null,215,"","","",0,""]
[null,null,null,null,null,null,null,null,null,null,null,216,"","","",0,""]
[null,null,null,null,null,null,null,null,null,null,null,217,"","","",0,""]
[null,null,null,null,null,null,null,null,null,null,null,218,"","","",0,""]
[null,null,null,null,null,null,null,null,null,null,null,219,"[","[",87,0,""]
[null,null,null,null,null,null,null,null,null,null,null,220,"\\","\\",83,0,""]
[null,null,null,null,null,null,null,null,null,null,null,221,"]","]",93,0,""]
[null,null,null,null,null,null,null,null,null,null,null,222,"^","^",81,0,""]
[null,null,null,null,null,null,null,null,null,null,null,223,"","","",0,""]
[null,null,null,null,null,null,null,null,null,null,null,224,"","","",0,""]
[null,null,null,null,null,null,null,null,null,null,null,225,"","","",0,""]
[null,null,null,null,null,null,null,null,null,null,null,226,"＼","＼",101,0,""]
[null,null,null,null,null,null,null,null,null,null,null,227,"","","",0]
[null,null,null,null,null,null,null,null,null,null,null,228,"","","",0]
[null,null,null,null,null,null,null,null,null,null,null,229,"","","",0]
[null,null,null,null,null,null,null,null,null,null,null,230,"","","",0]
[null,null,null,null,null,null,null,null,null,null,null,231,"","","",0]
[null,null,null,null,null,null,null,null,null,null,null,232,"","","",0]
[null,null,null,null,null,null,null,null,null,null,null,233,"","","",0]
[null,null,null,null,null,null,null,null,null,null,null,234,"","","",0]
[null,null,null,null,null,null,null,null,null,null,null,235,"","","",0]
[null,null,null,null,null,null,null,null,null,null,null,236,"","","",0]
[null,null,null,null,null,null,null,null,null,null,null,237,"","","",0]
[null,null,null,null,null,null,null,null,null,null,null,238,"","","",0]
[null,null,null,null,null,null,null,null,null,null,null,239,"","","",0]
[null,null,null,null,null,null,null,null,null,null,null,240,"","","",129]
[null,null,null,null,null,null,null,null,null,null,null,241,"","","",0]
[null,null,null,null,null,null,null,null,null,null,null,242,"","","",0]
[null,null,null,null,null,null,null,null,null,null,null,243,"","","",129]
[null,null,null,null,null,null,null,null,null,null,null,244,"","","",0]
[null,null,null,null,null,null,null,null,null,null,null,245,"","","",0]
[null,null,null,null,null,null,null,null,null,null,null,246,"","","",129]
[null,null,null,null,null,null,null,null,null,null,null,247,"","","",0]
[null,null,null,null,null,null,null,null,null,null,null,248,"","","",0]
[null,null,null,null,null,null,null,null,null,null,null,249,"","","",0]
[null,null,null,null,null,null,null,null,null,null,null,250,"","","",0]
[null,null,null,null,null,null,null,null,null,null,null,251,"","","",129]
[null,null,null,null,null,null,null,null,null,null,null,252,"","","",0]
[null,null,null,null,null,null,null,null,null,null,null,253,"","","",0]
[null,null,null,null,null,null,null,null,null,null,null,254,"","","",0]
[null,null,null,null,null,null,null,null,null,null,null,255,"","","",1]
[null,null,null,null,null,null,null,null,null,null,null,null,{"$f":"IFERROR(INDEX(A:A,MATCH(L258,E:E,0)),\"\")","v":""},{"$f":"IFERROR(INDEX(B:B,MATCH(M258,#REF!,0)),\"\")","v":""},{"$f":"IF(N258=\"\",\"\",IFERROR(INDEX(J:J,MATCH(L258,E:E,0)),\"\"))","v":""}]

{"sheet":"キーボード入力表示間隔を遅くにする","index":3,"n_rows":2,"n_cols":2,"rows_kept":2,"cut":false,"hidden":true,"merged":[]}
[]
[null,"連続文字入力防止用に文字入力時の表示の感覚を最も遅くで設定して下さい。"]